{"text_format":"1","workbook":"xlsx","n_sheets":13,"sheets":["入力シート","使い方_ポジワットあり_旧","使い方_ポジワットなし","エラーメッセージ一覧_ポジワットあり_旧","使い方","エラーメッセージ一覧_ポジワットなし","エラーメッセージ一覧","Posiwatt_Sheet","Add_Resource_Style","XSD(0231)","XSD(0231)_旧","XSD(0232)","XSD(0232)_旧"],"not_rendered":{"charts":0,"images":3,"macros":1,"external_links":1,"defined_names":2,"comments":5,"pivot_tables":0},"unopened":[],"bounds":{"document_bytes":16777216,"sheet_cells":100000,"rows_first":2000,"rows_last":500,"rows_between":2000,"halvings":0,"cell_chars":16384,"cell_head_chars":4096},"cells_cut":0,"cells_raw":0,"read":"whole","date_system":"1900"}

{"sheet":"入力シート","index":0,"n_rows":24,"n_cols":15,"rows_kept":24,"cut":false,"hidden":false,"merged":[[2,6,2,11],[3,6,3,11],[5,9,5,11],[6,10,6,11],[9,5,9,8],[5,3,5,8],[6,5,6,8],[7,5,7,8],[8,5,8,8],[7,10,7,11],[8,10,8,11],[9,10,9,11],[20,2,20,13],[21,3,21,10],[21,11,21,13],[10,5,10,8],[10,10,10,11],[14,2,14,11],[15,3,15,8],[15,9,15,10]]}
[null,null,null,"各リスト・パターン入力支援ツール"]
[]
[null,null,null,"対象各リスト・パターン","パターン①","読込ファイル名","",null,null,null,null,null,null,null,"需要家数"]
[null,null,null,"供出可能量（kW)",null,"出力先","",null,null,null,null,null,null,null,1]
[null,null,null,"適用開始希望年月日","",null,null,null,null,null,null,null,null,null,"発電所数"]
[null,null,null,"基本情報",null,null,null,null,null,"出力ファイル名情報",null,null,null,null,1]
[null,null,null,null,"コード","名称▲",null,null,null,"XMLファイル名",{"$f":"\"W9_\"&E8&\"_\"&K8&\"_\"&K9&\"_\"&K10&\"_\"&K11&\".xml\"","v":"W9_0231___01_.xml"}]
[null,null,null,"情報区分","0231","各リスト・パターン（週間市場商品）",null,null,null,"対象時期の開始日",{"$f":"E5","v":""}]
[null,null,null,"提出先事業者","","",null,null,null,"アグリゲータ用系統コード",{"$f":"E11","v":""}]
[null,null,null,"送信事業者","","",null,null,null,"対象パターン番号",{"$f":"IF(E3=\"パターン①\",\"01\",IF(E3=\"パターン②\",\"02\",IF(E3=\"パターン③\",\"03\",IF(E3=\"パターン④\",\"04\",IF(E3=\"パターン⑤\",\"05\",IF(E3=\"パターン⑥\",\"06\",IF(E3=\"パターン⑦\",\"07\",IF(E3=\"パターン⑧\",\"08\",IF(E3=\"パターン⑨\",\"09\",IF(E3=\"パターン⑩\",\"10\",IF( E3=\"パターン⑪\",\"11\",IF(E3=\"パターン⑫\",\"12\",IF(E3=\"パターン⑬\",\"13\",IF(E3=\"パターン⑭\",\"14\",IF(E3=\"パターン⑮\",\"15\",IF(E3=\"パターン⑯\",\"16\",IF(E3=\"パターン⑰\",\"17\",IF(E3=\"パターン⑱\",\"18\",IF(E3=\"パターン⑲\",\"19\",IF(E3=\"パターン⑳\",\"20\"))))))))))))))))))))","v":"01"}]
[null,null,null,"提出者(アグリゲータ用系統コード）","","",null,null,null,"電源等コード"]
[null,null,null,"運用モード","通常"]
[]
[]
[null,null,"　　　　　　　　　　　　　　　　　　　　　　　　　　　　　　　　　　　　　　　　　　　　　　　　　　ネガワットリスト"]
[null,null,null,"需要家情報",null,null,null,null,null,"所属小売事業者情報",null,"他需要抑制契約の状況"]
[null,null,"NO","供給地点特定番号","需要家名称","供給場所","契約電力(kW)","電圧区分","供出方法","小売電気事業者コード","小売電気事業者名称▲","類型Ⅰ②\n需要抑制BGコード"]
[null,null,1]
[]
[]
[null,null,"　　　　　　　　　　　　　　　　　　　　　　　　　　　　　　　　　　　　　　　　　　　　　　　　　　ポジワットリスト"]
[null,null,null,"発電所情報",null,null,null,null,null,null,null,"発電販売計画情報"]
[null,null,"NO","受電地点特定番号","発電所名称","発電場所","契約受電電力(kW)","電圧区分","電源種別","発電方式","火力燃料種別","所属発電\nBGコード","所属発電BG名称▲","発電計画用\n系統コード"]
[null,null,1]

{"sheet":"使い方_ポジワットあり_旧","index":1,"n_rows":99,"n_cols":18,"rows_kept":99,"cut":false,"hidden":true,"merged":[[0,0,1,15],[4,5,20,14],[23,0,25,14],[28,0,28,14],[29,0,29,4],[29,5,29,6],[29,7,29,15],[37,0,37,5],[37,6,37,7],[37,8,37,14],[30,0,30,4],[30,5,30,6],[30,7,30,15],[31,0,31,4],[31,5,31,6],[31,7,31,15],[34,0,34,7],[35,0,35,14],[36,0,36,5],[36,6,36,7],[36,8,36,14],[38,0,38,5],[38,6,38,7],[38,8,38,14],[39,0,39,5],[39,6,39,7],[39,8,39,14],[50,0,50,14],[40,0,40,5],[40,6,40,7],[40,8,40,14],[41,0,41,5],[41,6,41,7],[41,8,41,14],[43,0,43,14],[44,0,44,14],[45,0,45,14],[46,0,46,14],[49,0,49,7],[66,1,66,11],[51,0,51,5],[51,6,51,14],[52,0,52,5],[52,6,52,14],[53,0,53,5],[53,6,53,14],[54,0,54,5],[54,6,54,14],[55,0,55,5],[55,6,55,14],[65,0,65,14],[67,1,67,3],[67,4,67,6],[67,7,67,8],[68,1,68,3],[68,4,68,6],[68,7,68,8],[86,1,86,3],[86,4,86,5],[86,6,86,8],[78,0,79,14],[83,0,83,17],[84,1,84,13],[84,14,84,17],[85,1,85,3],[85,4,85,5],[85,6,85,8],[85,15,85,16]]}
["需要家リスト・パターン入力支援ツールの使用方法"]
[]
[]
["①起動ボタンの説明"]
[null,null,null,null,null,"本ツールは用途に合わせ，左図のボタンを押下して使用します。\n各ボタンの機能は，下記の通りです。\n・『ネガワットリスト需要家数変更』ボタン\n　需要抑制する需要家数を変更します。\n・『ポジワットリスト発電所数変更』ボタン\n　需要抑制する発電所数を変更します。\n・『需要家リスト・パターンXML読込』ボタン\n　過去に作成した需要家リスト・パターンのXMLファイルを読み込みます。\n・『需要家リスト・パターンXML出力』ボタン\n　入力シートで作成した需要家リスト・パターンをXMLファイル形式で出力します。\n・『XMLファイル妥当性検証』ボタン\n　本ツール以外で作成した基準値計画のXMLをスキーマと照合してビジネスプロトコル標準規格に準拠しているか妥当性を検証します。なお，本ツールでXMLファイルの読み込みおよび出力を行った場合，スキーマによる妥当性を検証しているため，この操作は不要です。\n・『終了（上書保存）』ボタン\n　入力シートを上書き保存した後，本エクセルブックを閉じます。"]
[]
[]
[]
[]
[]
[]
[]
[]
[]
[]
[]
[]
[]
[]
[]
[]
[]
["②入力項目の説明"]
["本ツールは，『入力シート』の白色セルの所定の項目を入力した上で，XMLファイルに変換します。白色セルで『▲』マークが記されていない箇所は，必須入力項目です。具体的な入力方法は次項以降で説明します。"]
[]
[]
[]
["②－１　ファイル情報の入力"]
["ファイル情報の具体的な入力規則は下記の通りです。"]
["対象需要家リスト・パターン",null,null,null,null,"パターン④",null,"パターンは原則『パターン①』～『パターン⑩』を選択。"]
["供出可能量（kW)",null,null,null,null,85637,null,"当該需要家リスト・パターンの供出可能量を半角整数で入力。"]
["適用開始希望年月日",null,null,null,null,"20210418",null,"対象年月日は『YYYYMMDD』形式で半角数字8桁で入力。"]
[]
["②－２　基本情報の入力"]
["基本情報の具体的な入力規則は下記の通りです。"]
["基本情報"]
[null,null,null,null,null,null,"コード",null,"名称▲"]
["情報区分",null,null,null,null,null,"0232",null,"3次②需要家リスト・パターン"]
["提出先事業者",null,null,null,null,null,"10033",null,"東京電力パワーグリッド株式会社"]
["送信事業者",null,null,null,null,null,"80363",null,"グローバルエナジーアグリゲーター"]
["提出者（アグリゲーター用系統コード）",null,null,null,null,null,"3Y543",null,"グローバルエナジーアグリゲーター"]
["運用モード",null,null,null,null,null,"通常"]
[]
["情報区分は，自動入力（W9_0232で三次②需要家リスト・パターンを意味します）。"]
["提出先事業者は，作成する基準値計画が対象するリソースにおける属地エリアの一般送配電事業者を入力。"]
["送信事業者は，送信事業者コードと事業者名称を入力。"]
["運用モードは，約定したリソースの基準値計画として需給調整市場システムに提出する場合，『通常』を選択。"]
[]
["②－３　出力ファイル情報の入力"]
["出力ファイル情報の具体的な入力は下記の通りです。"]
["出力ファイル名情報"]
["XMLファイル名",null,null,null,null,null,"W9_0232_20200230_3Y543_04_KSS2019.xml"]
["対象時期の開始日",null,null,null,null,null,20200230]
["アグリゲータ用系統コード",null,null,null,null,null,"3Y543"]
["対象需要家リスト・パターン番号",null,null,null,null,null,"04"]
["電源等コード",null,null,null,null,null,"KSS2019"]
[]
["XMLファイル名は，自動入力（“W9_”＋情報区分＋適用開始希望年月日＋提出者（アグリゲータ用系統コード）＋対象需要家リスト・パターン番号＋電源等コード＋”.xml”を表示）"]
["対象時期の開始日は，自動入力（適用開始希望年月日を表示）"]
["アグリゲータ用系統コードは，自動入力（提出者（アグリゲータ用系統コード）を表示）"]
["対象需要家リスト・パターン番号は，自動入力（対象需要家リスト・パターンを数値2桁で表示）"]
["電源等コードは，半角英数字（\"-\",\"_\"も使用可）で10桁以内で入力"]
[]
["②－４　ネガワットリストの入力"]
["ネガワットの具体的な入力規則は下記の通りです。"]
["ネガワットリスト"]
[null,"需要家情報",null,null,null,null,null,null,null,null,null,null,"小売電気事業者情報",null,"他需要抑制契約の状況"]
["NO","供給地点特定番号",null,null,"需要家名称",null,null,"所在地",null,"契約電力(kW)","電圧区分","供出方法","小売電気\n事業者\nコード","小売電気\n事業者\n名称▲","類型Ⅰ②\n需要抑制BGコード"]
[1,"0311111111111111111111",null,null,"東京工場",null,null,"東京都大田区〇-〇-〇",null,5856,"特高","需要抑制","LA2*3","P2Pネット","****3"]
[]
["供給地点特定番号は，需要家を一意に特定する22桁の数字を入力。"]
["需要家名称は，需要家の名称を50文字以内で入力。"]
["所在地は需要家の住所を50文字以内で入力。"]
["契約電力(kW)は，需要家の契約電力(kW)を半角整数で入力。"]
["電圧区分は，需要家の供給電圧区分を『特高』，『高圧』，『低圧』から選択。"]
["供出方法は，需要家の調整力供出方法を『需要抑制』，『電源（自家発等）』から選択。"]
["小売電気事業者コードは需要リソースに電気を供給している小売電気事業者の事業者コードを半角英数字5桁で入力。"]
["小売電気事業者名称は，需要リソースに電気を供給している小売電気事業者の名称を50文字以内で任意入力。"]
["類型Ⅰ②需要抑制BGコードは，需要家が類型Ⅰ②需要抑制契約を締結している場合，その需要抑制BGコードを半角英数字5桁で入力。類型Ⅰ②需要抑制契約を締結していない場合は，『無』と入力。"]
[]
[]
["②－５　ポジワットリストの入力"]
["ポジワットリストの具体的な入力規則は下記の通りです。"]
["ポジワットリスト"]
[null,"発電所情報",null,null,null,null,null,null,null,null,null,null,null,null,"発電販売計画情報"]
["NO","受電地点特定番号",null,null,"発電所名称",null,"所在地",null,null,"最大受電電力(kW)","電圧区分","電源の種別","発電方式","火力燃料\n種別","所属発電BGコード","所属発電BG名称▲",null,"発電計画用系統コード"]
[1,"310122000100100000000",null,null,"○○クリーンセンター",null,"東京都武蔵野市緑町*-**-*",null,null,800,"特高","火力","汽力","LNG","GB8*3","〇〇エナジー",null,"GB8*3"]
[]
["受電地点特定番号は，発電設備の場所を一意に特定する22桁の数字を入力。"]
["発電所名称は，発電所の名称を50文字以内で入力。"]
["所在地は発電所の住所を50文字以内で入力。"]
["最大受電電力(kW)は，発電所の最大受電電力(kW)を半角整数で入力。"]
["電圧区分は，発電所の電圧区分を『特高』，『高圧』，『低圧』から選択。"]
["電源の種別は，発電所の電源の種別を『火力』，『水力』，『太陽光』，『風力』，『地熱』，『蓄電池』，『その他』から選択。"]
["発電方式は，発電所の調整力発電方法を『コンバインドサイクル』，『汽力』，『ディーゼル』，『水力』，『太陽光』，『風力』，『蓄電池』，『その他』から選択。"]
["火力燃料種別は，発電所の調整力火力燃料種別を『原油』，『重油』，『軽油』，『LNG』，『LPG』，『NGL』，『都市ガス』，『灯油』，『石炭』，『木質ペレット』，『その他」』から選択。"]
["所属発電BGコードは，発電所の所属発電BGコードを半角英数字5桁（1文字目「G」）で入力"]
["所属発電BG名称▲は，所属発電所のＢＧ名所を50文字以内で任意入力"]
["発電計画用系統コードは，発電販売計画の系統コードを半角英数字5桁で入力。"]

{"sheet":"使い方_ポジワットなし","index":2,"n_rows":78,"n_cols":15,"rows_kept":78,"cut":false,"hidden":true,"merged":[[77,0,78,14],[66,1,66,3],[66,4,66,6],[66,7,66,8],[67,1,67,3],[67,4,67,6],[67,7,67,8],[65,1,65,11],[50,0,50,5],[50,6,50,14],[51,0,51,5],[51,6,51,14],[52,0,52,5],[52,6,52,14],[53,0,53,5],[53,6,53,14],[54,0,54,5],[54,6,54,14],[64,0,64,14],[49,0,49,14],[39,0,39,5],[39,6,39,7],[39,8,39,14],[40,0,40,5],[40,6,40,7],[40,8,40,14],[42,0,42,14],[43,0,43,14],[44,0,44,14],[45,0,45,14],[48,0,48,7],[37,0,37,5],[37,6,37,7],[37,8,37,14],[38,0,38,5],[38,6,38,7],[38,8,38,14],[36,0,36,5],[36,6,36,7],[36,8,36,14],[29,0,29,4],[29,5,29,6],[29,7,29,15],[30,0,30,4],[30,5,30,6],[30,7,30,15],[33,0,33,7],[34,0,34,14],[35,0,35,5],[35,6,35,7],[35,8,35,14],[0,0,1,15],[22,0,24,14],[27,0,27,14],[28,0,28,4],[28,5,28,6],[28,7,28,15],[4,5,20,14]]}
["需要家リスト・パターン入力支援ツールの使用方法"]
[]
[]
["①起動ボタンの説明"]
[null,null,null,null,null,"本ツールは用途に合わせ，左図のボタンを押下して使用します。\n各ボタンの機能は，下記の通りです。\n・『対象商品変更』ボタン\n　作成するXMLファイルに合わせての対象となる商品を選択します。\n・『ネガワットリスト需要家数変更』ボタン\n　需要抑制する需要家数を変更します。\n・『需要家リスト・パターンXML読込』ボタン\n　過去に作成した需要家リスト・パターンのXMLファイルを読み込みます。\n・『需要家リスト・パターンXML出力』ボタン\n　入力シートで作成した需要家リスト・パターンをXMLファイル形式で出力します。\n・『XMLファイル妥当性検証』ボタン\n　本ツール以外で作成した基準値計画のXMLをスキーマと照合してビジネスプロトコル標準規格に準拠しているか妥当性を検証します。なお，本ツールでXMLファイルの読み込みおよび出力を行った場合，スキーマによる妥当性を検証しているため，この操作は不要です。\n・『終了（上書保存）』ボタン\n　入力シートを上書き保存した後，本エクセルブックを閉じます。"]
[]
[]
[]
[]
[]
[]
[]
[]
[]
[]
[]
[]
[]
[]
[]
[]
["②入力項目の説明"]
["本ツールは，『入力シート』の白色セルの所定の項目を入力した上で，XMLファイルに変換します。白色セルで『▲』マークが記されていない箇所は，必須入力項目です。具体的な入力方法は次項以降で説明します。"]
[]
[]
[]
["②－１　ファイル情報の入力"]
["ファイル情報の具体的な入力規則は下記の通りです。"]
["対象需要家リスト・パターン",null,null,null,null,"パターン④",null,"パターンは原則『パターン①』～『パターン⑩』を選択。"]
["供出可能量（kW)",null,null,null,null,85637,null,"当該需要家リスト・パターンの供出可能量を半角整数で入力。"]
["適用開始希望年月日",null,null,null,null,"20210418",null,"対象年月日は『YYYYMMDD』形式で半角数字8桁で入力。"]
[]
["②－２　基本情報の入力"]
["基本情報の具体的な入力規則は下記の通りです。"]
["基本情報"]
[null,null,null,null,null,null,"コード",null,"名称▲"]
["情報区分",null,null,null,null,null,"0232",null,"3次②需要家リスト・パターン"]
["提出先事業者",null,null,null,null,null,"10033",null,"東京電力パワーグリッド株式会社"]
["送信事業者",null,null,null,null,null,"80363",null,"グローバルエナジーアグリゲーター"]
["提出者（アグリゲーター用系統コード）",null,null,null,null,null,"3Y543",null,"グローバルエナジーアグリゲーター"]
["運用モード",null,null,null,null,null,"通常"]
[]
["情報区分は，自動入力（W9_0232で三次②需要家リスト・パターンを意味します）。"]
["提出先事業者は，作成する基準値計画が対象するリソースにおける属地エリアの一般送配電事業者を入力。"]
["送信事業者は，送信事業者コードと事業者名称を入力。"]
["運用モードは，約定したリソースの基準値計画として需給調整市場システムに提出する場合，『通常』を選択。"]
[]
["②－３　出力ファイル情報の入力"]
["出力ファイル情報の具体的な入力は下記の通りです。"]
["出力ファイル名情報"]
["XMLファイル名",null,null,null,null,null,"W9_0232_20200230_3Y543_04_KSS2019.xml"]
["対象時期の開始日",null,null,null,null,null,20200230]
["アグリゲータ用系統コード",null,null,null,null,null,"3Y543"]
["対象需要家リスト・パターン番号",null,null,null,null,null,"04"]
["電源等コード",null,null,null,null,null,"KSS2019"]
[]
["XMLファイル名は，自動入力（“W9_”＋情報区分＋適用開始希望年月日＋提出者（アグリゲータ用系統コード）＋対象需要家リスト・パターン番号＋電源等コード＋”.xml”を表示）"]
["対象時期の開始日は，自動入力（適用開始希望年月日を表示）"]
["アグリゲータ用系統コードは，自動入力（提出者（アグリゲータ用系統コード）を表示）"]
["対象需要家リスト・パターン番号は，自動入力（対象需要家リスト・パターンを数値2桁で表示）"]
["電源等コードは，半角英数字（\"-\",\"_\"も使用可）で10桁以内で入力"]
[]
["②－４　ネガワットリストの入力"]
["ネガワットの具体的な入力規則は下記の通りです。"]
["ネガワットリスト"]
[null,"需要家情報",null,null,null,null,null,null,null,null,null,null,"小売電気事業者情報",null,"他需要抑制契約の状況"]
["NO","供給地点特定番号",null,null,"需要家名称",null,null,"所在地",null,"契約電力(kW)","電圧区分","供出方法","小売電気\n事業者\nコード","小売電気\n事業者\n名称▲","類型Ⅰ②\n需要抑制BGコード"]
[1,"0311111111111111111111",null,null,"東京工場",null,null,"東京都大田区〇-〇-〇",null,5856,"特高","需要抑制","LA2*3","P2Pネット","****3"]
[]
["供給地点特定番号は，需要家を一意に特定する22桁の数字を入力。"]
["需要家名称は，需要家の名称を50文字以内で入力。"]
["所在地は需要家の住所を50文字以内で入力。"]
["契約電力(kW)は，需要家の契約電力(kW)を半角整数で入力。"]
["電圧区分は，需要家の供給電圧区分を『特高』，『高圧』，『低圧』から選択。"]
["供出方法は，需要家の調整力供出方法を『需要抑制』，『電源（自家発等）』から選択。"]
["小売電気事業者コードは需要リソースに電気を供給している小売電気事業者の事業者コードを半角英数字5桁で入力。"]
["小売電気事業者名称は，需要リソースに電気を供給している小売電気事業者の名称を50文字以内で任意入力。"]
["類型Ⅰ②需要抑制BGコードは，需要家が類型Ⅰ②需要抑制契約を締結している場合，その需要抑制BGコードを半角英数字5桁で入力。類型Ⅰ②需要抑制契約を締結していない場合は，『無』と入力。"]

{"sheet":"エラーメッセージ一覧_ポジワットあり_旧","index":3,"n_rows":84,"n_cols":6,"rows_kept":84,"cut":false,"hidden":true,"merged":[]}
["■三次調整力②需要家リスト・パターン入力支援ツール_エラーメッセージ一覧"]
[]
[null,"No.","操作","エラー種別","エラーメッセージ","対処方法"]
[null,{"$f":"ROW()-3","v":1},"「ネガワットリスト需要家数変更」ボタン押下","入力エラー","増加需要家数を0以上かつxxxx以下の整数で入力して下さい。","【ネガワットリスト需要家数の増加】\n・増加する需要家数を見直してください。（max9999）"]
[null,{"$f":"ROW()-3","v":2},null,"入力エラー","削除する需要家番号を1～xxの整数で入力して下さい。","【需要家リソース数減少】需要家を1個選択して削除／連続した複数の需要家を削除\n・削除する需要家番号を見直してください。"]
[null,{"$f":"ROW()-3","v":3},null,"入力エラー","現在需要家リソースは存在しないため，これ以上削除できません。","【需要家リソース数減少】需要家を1個選択して削除／連続した複数の需要家を削除\n・削除対象の需要家が存在していません。ネガワットリスト情報を確認してください。"]
[null,{"$f":"ROW()-3","v":4},null,"入力エラー","削除する需要家リソースの開始と終了の番号を入力してください。","【需要家リソース数減少】連続した複数の需要家を削除\n・削除する需要家番号を入力してください。"]
[null,5,null,"入力エラー","削除終了の需要家リソース番号は，削除開始の需要家リソース番号より同じか後にして下さい。","【需要家リソース数減少】連続した複数の需要家を削除\n・削除する需要家番号の開始番号と終了番号を見直してください。"]
[null,6,"「ポジワットリスト発電所数変更」ボタン押下","入力エラー","増加発電所数を0以上かつｘｘｘ以下の整数で入力して下さい。","【ポジワットリスト発電所数の増加】\n・増加させる発電所数を見直してください。（max999）"]
[null,7,null,"入力エラー","削除する発電所番号を1～xxxの整数で入力して下さい。","【発電所リソース数減少】発電所を1個選択して削除／連続した複数の発電所を削除\n・削除する発電所番号を見直してください。"]
[null,8,null,"入力エラー","削除する発電所リソースの開始と終了の番号を入力してください。","【発電所リソース数減少】需要家を1個選択して削除／連続した複数の需要家を削除\n・削除対象の発電所を入力してください。"]
[null,9,null,"入力エラー","現在発電所リソースは存在しないため，これ以上削除できません。","【発電所リソース数減少】需要家を1個選択して削除／連続した複数の需要家を削除\n・削除対象の発電所が存在していません。ポジワットリスト情報を確認してください。"]
[null,10,null,"入力エラー","削除終了の発電所リソース番号は，削除開始の発電所リソース番号より同じか後にして下さい。","【発電所リソース数減少】連続した複数の発電所を削除\n・削除する需要家番号の開始番号と終了番号を見直してください。"]
[null,11,"「需要家リスト・パターンXML読込」ボタン押下\n「XMLファイル妥当性検証」ボタン押下","XMLエラー","読み込んだXMLファイルは下記の理由で規格に違反しているため、読込を中止します。\nエラー理由：　\n　　　　～","・エラー理由を参照しXMLファイルの指摘箇所を修正してください。"]
[null,12,"画面項目入力（入力規制）","入力エラー","供出可能量(kW)は，半角9桁以内かつ正の整数で入力して下さい。","【ファイル情報】供出可能量(kW)\n・入力値を見直してください。"]
[null,13,null,"入力エラー","適用開始希望年月日は『YYYYMMDD』形式の半角数字8桁で入力して下さい。","【ファイル情報】適用開始希望年月日\n・入力値を見直してください。"]
[null,14,null,"入力エラー","提出先事業者コードは半角英数字5桁で入力して下さい。","【基本情報】_提出先事業者（コード）\n・入力値を見直してください。"]
[null,15,null,"入力エラー","提出先事業者名称は50文字以内で入力して下さい。","【基本情報】_提出先事業者（名称▲）\n・入力値を見直してください。"]
[null,16,null,"入力エラー","送信事業者コードは半角英数字5桁で入力して下さい。","【基本情報】_送信事業者（コード）\n・入力値を見直してください。"]
[null,17,null,"入力エラー","送信事業者名称は50文字以内で入力して下さい。","【基本情報】_送信事業者（名称▲）\n・入力値を見直してください。"]
[null,18,null,"入力エラー","提出者コードは，アグリゲーター用系統コード（半角英数字5桁）を入力して下さい。","【基本情報】_提出者（アグリゲータ用系統コード）（コード）\n・入力値を見直してください。"]
[null,19,null,"入力エラー","提出者名称は50文字以内で入力して下さい。","【基本情報】_提出者（アグリゲータ用系統コード）（名称▲）\n・入力値を見直してください。"]
[null,20,null,"入力エラー","供給地点特定番号は22桁の半角数字で入力して下さい。","【ネガワットリスト】需要家情報_供給地点特定番号\n・入力値を見直してください。"]
[null,21,null,"入力エラー","需要家名称は，50文字以内で入力して下さい。","【ネガワットリスト】需要家情報_需要家名称\n・入力値を見直してください。"]
[null,22,null,"入力エラー","所在地は50文字以内で入力して下さい。","【ネガワットリスト】需要家情報_所在地\n・入力値を見直してください。"]
[null,23,null,"入力エラー","契約電力(kW)は，半角9桁以内かつ正の整数で入力して下さい。","【ネガワットリスト】需要家情報_契約電力(kW)\n・入力値を見直してください。"]
[null,24,null,"入力エラー","小売電気事業者コードは半角英数字5桁で入力して下さい。","【ネガワットリスト】所属小売事業者情報_小売電気事業者コード\n・入力値を見直してください。"]
[null,25,null,"入力エラー","小売電気事業者名称は，50文字以内で入力して下さい。","【ネガワットリスト】所属小売事業者情報_小売電気事業者名称▲\n・入力値を見直してください。"]
[null,26,null,"入力エラー","受電地点特定番号は22桁の半角数字で入力して下さい。","【発電所情報】発電所情報_受電地点特定番号\n・入力値を見直してください。"]
[null,27,null,"入力エラー","発電所名称は50文字以内で入力して下さい。","【発電所情報】発電所情報_発電所名称\n・入力値を見直してください。"]
[null,28,null,"入力エラー","所在地は50文字以内で入力して下さい。","【発電所情報】発電所情報_所在地\n・入力値を見直してください。"]
[null,29,null,"入力エラー","最大受電電力(kW)は，半角9桁以下の正の整数で入力して下さい。","【発電所情報】発電所情報_最大受電電力(kW)\n・入力値を見直してください。"]
[null,30,null,"入力エラー","所属発電BGコードは，半角英数字5桁で入力して下さい。","発電所情報】発電販売計画情報_所属発電BGコード\n・入力値を見直してください。"]
[null,31,null,"入力エラー","所属発電BG名称は50文字以内で入力して下さい。","発電所情報】発電販売計画情報_所属発電BG名称▲\n・入力値を見直してください。"]
[null,32,null,"入力エラー","発電計画用系統コードは，半角英数字5桁で入力して下さい。","発電所情報】発電販売計画情報_発電計画用系統コード\n・入力値を見直してください。"]
[null,33,"「需要家リスト・パターンXML出力」ボタン押下","入力エラー","対象需要家リスト・パターンが選択されていません。","【ファイル情報】対象需要家リスト・パターン\n・リスト・パターンを選択してください。"]
[null,34,null,"入力エラー","対象需要家リスト・パターンに誤りがあります。","【ファイル情報】対象需要家リスト・パターン\n・パターン①～パターン⑳までのいずれかを選択してください。"]
[null,35,null,"入力エラー","供出可能量(kW)は半角数字9桁以内かつ正の整数で入力してください。","【ファイル情報】供出可能量(kW)\n・入力値を見直してください。"]
[null,36,null,"入力エラー","適用開始希望年月日は『YYYYMMDD』形式の半角数字8桁で入力してください。","【ファイル情報】適用開始希望年月日\n・入力値を見直してください。"]
[null,37,null,"入力エラー","適用開始希望年月日は存在する日付で入力してください。","【ファイル情報】適用開始希望年月日\n・存在する日付を入力してください。"]
[null,38,null,"入力エラー","提出先事業者コードは半角英数字5桁で入力してください。","【基本情報】_提出先事業者（コード）\n・入力値を見直してください。"]
[null,39,null,"入力エラー","提出先事業者名称は50文字以内で入力してください。","【基本情報】_提出先事業者（名称▲）\n・入力値を見直してください。"]
[null,40,null,"入力エラー","送信事業者コードは半角英数字5桁で入力してください。","【基本情報】_送信事業者（コード）\n・入力値を見直してください。"]
[null,41,null,"入力エラー","送信事業者名称は50文字以内で入力してください。","【基本情報】_送信事業者（名称▲）\n・入力値を見直してください。"]
[null,42,null,"入力エラー","提出者コード（アグリゲーター用系統コード）は半角英数字5桁（2桁目『Y』)で入力してください。","【基本情報】_提出者（アグリゲータ用系統コード）（コード）\n・入力値を見直してください。"]
[null,43,null,"入力エラー","提出者名称は50文字以内で入力してください。","【基本情報】_提出者（アグリゲータ用系統コード）（名称▲）\n・入力値を見直してください。"]
[null,44,null,"入力エラー","電源等コードは半角英数字10桁以内で入力してください。","【出力ファイル名情報】_電源等コード\n・入力値を見直してください。"]
[null,45,null,"入力エラー","需要家No.xxの供給地点特定番号に誤りがあります。\n供給地点特定番号は半角数字22桁で入力してください。","【ネガワットリスト】需要家情報_供給地点特定番号\n・入力値を見直してください。"]
[null,46,null,"入力エラー","需要家No.xxの需要家名称に誤りがあります。\n需要家名称は50文字以内で入力してください。","【ネガワットリスト】需要家情報_需要家名称\n・入力値を見直してください。"]
[null,47,null,"入力エラー","需要家No.xxの所在地に誤りがあります。\n所在地は50文字以内で入力してください。","【ネガワットリスト】需要家情報_所在地\n・入力値を見直してください。"]
[null,48,null,"入力エラー","需要家No.xxの契約電力(kW)に誤りがあります。\n契約電力(kW)は半角9桁以内かつ正の整数で入力してください。","【ネガワットリスト】需要家情報_契約電力(kW)\n・入力値を見直してください。"]
[null,49,null,"入力エラー","需要家No.xxの電圧区分が選択されていません。","【ネガワットリスト】需要家情報_電圧区分\n・入力値を見直してください。"]
[null,50,null,"入力エラー","需要家No.xxの供出方法が選択されていません。","【ネガワットリスト】需要家情報_供出方法\n・入力値を見直してください。"]
[null,51,null,"入力エラー","需要家No.xxの供出方法に誤りがあります。","【ネガワットリスト】需要家情報_供出方法\n・需要抑制、電源（自家発等）のいずれかを選択してください。"]
[null,52,null,"入力エラー","需要家No.xxの小売電気事業者コードに誤りがあります。\n小売電気事業者コードは半角英数字5桁で入力してください。","【ネガワットリスト】所属小売事業者情報_小売電気事業者コード\n・入力値を見直してください。"]
[null,53,null,"入力エラー","需要家No.xxの小売電気事業者名称に誤りがあります。\n小売電気事業者名称は50文字以内で入力してください。","【ネガワットリスト】所属小売事業者情報_小売電気事業者名称▲\n・入力値を見直してください。"]
[null,54,null,"入力エラー","需要家No.xxの需要抑制BGコードに誤りがあります。\n類型Ⅰ②需要抑制契約を締結していない場合，需要抑制BGコードは『無』と入力し，類型Ⅰ②需要抑制契約を締結している場合，需要抑制BGコードは半角英数字5桁で入力してください。","【ネガワットリスト】他需要抑制契約の状況_類型Ⅰ②需要抑制BGコード\n・入力値を見直してください。"]
[null,55,null,"入力エラー","発電所No.xxの受電地点特定番号に誤りがあります。\n受電地点特定番号は半角数字22桁で入力してください。","【発電所情報】発電所情報_受電地点特定番号\n・入力値を見直してください。"]
[null,56,null,"入力エラー","発電所No.xxの発電所名称に誤りがあります。\n発電所名称は50文字以内で入力してください。","【発電所情報】発電所情報_発電所名称\n・入力値を見直してください。"]
[null,57,null,"入力エラー","発電所No.xxの所在地に誤りがあります。\n所在地は50文字以内で入力してください。","【発電所情報】発電所情報_所在地\n・入力値を見直してください。"]
[null,58,null,"入力エラー","発電所No.xxの最大受電電力(kW)に誤りがあります。\n最大受電電力(kW)は半角9桁以内かつ正の整数で入力してください。","【発電所情報】発電所情報_最大受電電力(kW)\n・入力値を見直してください。"]
[null,59,null,"入力エラー","発電所No.xxの電圧区分が選択されていません。","【発電所情報】発電所情報_電圧区分\n・入力値を見直してください。"]
[null,60,null,"入力エラー","発電所No.xxの電源の種別が選択されていません。","【発電所情報】発電所情報_電源の種別\n・入力値を見直してください。"]
[null,61,null,"入力エラー","発電所No.xxの電源の種別に誤りがあります。","【発電所情報】発電所情報_電源の種別\n・火力～その他までのいずれかを選択してください。"]
[null,62,null,"相関エラー","発電所No.xxの発電方式が選択されていません。","【発電所情報】発電所情報_発電方式\n・入力値を見直してください。"]
[null,63,null,"相関エラー","発電所No.xxの『電源の種別』と『発電方式』が整合していません。『電源の種別』で『火力』を選択した場合，『発電方式』は『コンバインドサイクル』，『汽力』，『ディーゼル』のいずれかから選択してください。","【発電所情報】発電所情報_電源の種別、発電方式\n・電源の種別と発電方式の組合せを見直してください。"]
[null,64,null,"相関エラー","発電所No.xxの『電源の種別』と『発電方式』が整合していません。『電源の種別』で『水力』を選択した場合，『発電方式』も『水力』を選択してください。","【発電所情報】発電所情報_電源の種別、発電方式\n・電源の種別と発電方式の組合せを見直してください。"]
[null,65,null,"相関エラー","発電所No.xxの『電源の種別』と『発電方式』が整合していません。『電源の種別』で『太陽光』を選択した場合，『発電方式』も『太陽光』を選択してください。","【発電所情報】発電所情報_電源の種別、発電方式\n・電源の種別と発電方式の組合せを見直してください。"]
[null,66,null,"相関エラー","発電所No.xxの『電源の種別』と『発電方式』が整合していません。『電源の種別』で『風力』を選択した場合，『発電方式』も『風力』を選択してください。","【発電所情報】発電所情報_電源の種別、発電方式\n・電源の種別と発電方式の組合せを見直してください。"]
[null,67,null,"相関エラー","発電所No.xxの『電源の種別』と『発電方式』が整合していません。『電源の種別』で『地熱』を選択した場合，『発電方式』は『汽力』を選択してください。","【発電所情報】発電所情報_電源の種別、発電方式\n・電源の種別と発電方式の組合せを見直してください。"]
[null,{"$f":"ROW()-3","v":68},null,"相関エラー","発電所No.xxの『電源の種別』と『発電方式』が整合していません。『電源の種別』で『蓄電池』を選択した場合，『発電方式』も『蓄電池』を選択してください。","【発電所情報】発電所情報_電源の種別、発電方式\n・電源の種別と発電方式の組合せを見直してください。"]
[null,69,null,"相関エラー","発電所No.xxの『電源の種別』と『発電方式』が整合していません。『電源の種別』で『その他』を選択した場合，『発電方式』も『その他』を選択してください。","【発電所情報】発電所情報_電源の種別、発電方式\n・電源の種別と発電方式の組合せを見直してください。"]
[null,70,null,"入力エラー","発電所No.xxの火力燃料種別が選択されていません。","【発電所情報】発電所情報_電源の種別、火力燃料種別\n・入力値を見直してください。"]
[null,71,null,"入力エラー","発電所No.xxの火力燃料種別に誤りがあります。","【発電所情報】発電所情報_電源の種別、火力燃料種別\n・原油～その他までのいずれかを選択してください。"]
[null,72,null,"相関エラー","発電所No.xxの『電源の種別』と『火力燃料種別』が整合していません。『電源の種別』で『水力』を選択した場合，『火力燃料種別』は『その他』を選択してください。","【発電所情報】発電所情報_電源の種別、火力燃料種別\n・電源の種別と火力燃料種別の組合せを見直してください。"]
[null,73,null,"相関エラー","発電所No.xxの『電源の種別』と『火力燃料種別』が整合していません。『電源の種別』で『太陽光』を選択した場合，『火力燃料種別』は『その他』を選択してください。","【発電所情報】発電所情報_電源の種別、火力燃料種別\n・電源の種別と火力燃料種別の組合せを見直してください。"]
[null,74,null,"相関エラー","発電所No.xxの『電源の種別』と『発電方式』が整合していません。『電源の種別』で『風力』を選択した場合，『火力燃料種別』は『その他』を選択してください。","【発電所情報】発電所情報_電源の種別、火力燃料種別\n・電源の種別と火力燃料種別の組合せを見直してください。"]
[null,75,null,"相関エラー","発電所No.xxの『電源の種別』と『発電方式』が整合していません。『電源の種別』で『地熱』を選択した場合，『火力燃料種別』は『その他』を選択してください。","【発電所情報】発電所情報_電源の種別、火力燃料種別\n・電源の種別と火力燃料種別の組合せを見直してください。"]
[null,76,null,"相関エラー","発電所No.xxの『電源の種別』と『発電方式』が整合していません。『電源の種別』で『蓄電池』を選択した場合，『火力燃料種別』は『その他』を選択してください。","【発電所情報】発電所情報_電源の種別、火力燃料種別\n・電源の種別と火力燃料種別の組合せを見直してください。"]
[null,77,null,"相関エラー","発電所No.xxの『電源の種別』と『発電方式』が整合していません。『電源の種別』で『その他』を選択した場合，『火力燃料種別』も『その他』を選択してください。","【発電所情報】発電所情報_電源の種別、火力燃料種別\n・電源の種別と火力燃料種別の組合せを見直してください。"]
[null,78,null,"入力エラー","発電所No.xxの所属発電BGコードに誤りがあります。\n所属発電BGコードは半角英数字5桁（1桁目『G』)で入力してください。","【発電所情報】発電販売計画情報_所属発電BGコード\n・入力値を見直してください。"]
[null,79,null,"入力エラー","発電所No.xxの所属発電BG名称に誤りがあります。\n所属発電BG名称は50文字以内で入力してください。","【発電所情報】発電販売計画情報_所属発電BG名称▲\n・入力値を見直してください。"]
[null,80,null,"入力エラー","発電所No.xxの発電計画用系統コードに誤りがあります。\n発電計画用系統コードは半角英数字5桁で入力してください。","【発電所情報】発電販売計画情報_発電計画用系統コード\n・入力値を見直してください。"]
[null,81,null,"XMLエラー","読み込んだXMLファイルは下記の理由で規格に違反しているため、読込を中止します。\nエラー理由：　\n　　　　～","エラー理由を参照し入力情報の指摘箇所を修正してください。"]

{"sheet":"使い方","index":4,"n_rows":99,"n_cols":18,"rows_kept":99,"cut":false,"hidden":false,"merged":[[43,16,43,30],[44,16,44,30],[45,16,45,30],[46,16,46,30],[43,0,46,14],[0,0,1,15],[23,0,25,14],[29,0,29,4],[29,5,29,6],[29,7,29,15],[4,5,21,14],[27,0,28,9],[30,0,30,4],[30,5,30,6],[30,7,30,15],[31,0,31,4],[31,5,31,6],[31,7,31,15],[33,0,34,9],[38,0,38,5],[38,6,38,7],[38,8,38,14],[39,0,39,5],[39,6,39,7],[39,8,39,14],[35,0,35,14],[36,0,36,5],[36,6,36,7],[36,8,36,14],[37,0,37,5],[37,6,37,7],[37,8,37,14],[53,0,53,5],[53,6,53,14],[40,0,40,5],[40,6,40,7],[40,8,40,14],[41,0,41,5],[41,6,41,7],[41,8,41,14],[49,0,49,7],[50,0,50,14],[51,0,51,5],[51,6,51,14],[52,0,52,5],[52,6,52,14],[54,0,54,5],[54,6,54,14],[55,0,55,5],[55,6,55,14],[85,15,85,16],[67,1,67,3],[67,4,67,6],[68,1,68,3],[68,4,68,6],[67,7,67,9],[65,0,65,15],[66,1,66,12],[66,13,66,14],[85,6,85,8],[68,7,68,9],[86,1,86,3],[86,4,86,5],[86,6,86,8],[78,0,79,14],[83,0,83,17],[84,1,84,13],[84,14,84,17],[85,1,85,3],[85,4,85,5],[86,15,86,16]]}
["各リスト・パターン入力支援ツールの使用方法"]
[]
[]
["①起動ボタンの説明"]
[null,null,null,null,null,"本ツールは用途に合わせ，左図のボタンを押下して使用します。\n各ボタンの機能は，下記の通りです。\n・『ネガワットリスト需要家数変更』ボタン\n　需要抑制する需要家数を変更します。\n・『ポジワットリスト発電所数変更』ボタン\n　需要抑制する発電所数を変更します。\n・『各リスト・パターンXML読込』ボタン\n　過去に作成した各リスト・パターンのXMLファイルを読み込みます。\n・『各リスト・パターンXML出力』ボタン\n　入力シートで作成した各リスト・パターンをXMLファイル形式で出力します。\n・『XMLファイル妥当性検証』ボタン\n　本ツール以外で作成した基準値計画のXMLをスキーマと照合してビジネスプロトコル標準規格に準拠しているか妥当性を検証します。なお，本ツールでXMLファイルの読み込みおよび出力を行った場合，スキーマによる妥当性を検証しているため，この操作は不要です。\n・『終了（上書保存）』ボタン\n　入力シートを上書き保存した後，本エクセルブックを閉じます。"]
[]
[]
[]
[]
[]
[]
[]
[]
[]
[]
[]
[]
[]
[]
[]
[]
[]
["②入力項目の説明"]
["本ツールは，『入力シート』の白色セルの所定の項目を入力した上で，XMLファイルに変換します。白色セルで『▲』マークが記されていない箇所は，必須入力項目です。具体的な入力方法は次項以降で説明します。"]
[]
[]
[]
["②－１　ファイル情報の入力\nファイル情報の具体的な入力規則は下記の通りです。"]
[]
["対象各リスト・パターン",null,null,null,null,"パターン④",null,"パターンは原則『パターン①』～『パターン⑩』を選択。"]
["供出可能量（kW)",null,null,null,null,85637,null,"当該各リスト・パターンの供出可能量を半角整数で入力。"]
["適用開始希望年月日",null,null,null,null,"20210418",null,"対象年月日は『YYYYMMDD』形式で半角数字8桁で入力。"]
[]
["②－２　基本情報の入力\n基本情報の具体的な入力規則は下記の通りです。"]
[]
["基本情報"]
[null,null,null,null,null,null,"コード",null,"名称▲"]
["情報区分",null,null,null,null,null,"0232",null,"三次調整力②"]
["提出先事業者",null,null,null,null,null,"10033",null,"東京電力パワーグリッド株式会社"]
["送信事業者",null,null,null,null,null,"80363",null,"グローバルエナジーアグリゲーター"]
["提出者（アグリゲーター用系統コード）",null,null,null,null,null,"3Y543",null,"グローバルエナジーアグリゲーター"]
["運用モード",null,null,null,null,null,"通常"]
[]
["情報区分は，自動入力（W9_0232で三次②各リスト・パターンを意味します）。\n提出先事業者は，作成する基準値計画が対象するリソースにおける属地エリアの一般送配電事業者を入力。\n送信事業者は，送信事業者コードと事業者名称を入力。\n運用モードは，約定したリソースの基準値計画として需給調整市場システムに提出する場合，『通常』を選択。"]
[]
[]
[]
[]
["②－３　出力ファイル情報の入力"]
["出力ファイル情報の具体的な入力は下記の通りです。"]
["出力ファイル名情報"]
["XMLファイル名",null,null,null,null,null,"W9_0232_20200230_3Y543_04_KSS2019.xml"]
["対象時期の開始日",null,null,null,null,null,20200230]
["アグリゲータ用系統コード",null,null,null,null,null,"3Y543"]
["対象パターン番号",null,null,null,null,null,"04"]
["電源等コード",null,null,null,null,null,"KSS2019"]
[]
["XMLファイル名は，自動入力（“W9_”＋情報区分＋適用開始希望年月日＋提出者（アグリゲータ用系統コード）＋各リスト・パターン番号＋電源等コード＋”.xml”を表示）"]
["対象時期の開始日は，自動入力（適用開始希望年月日を表示）"]
["アグリゲータ用系統コードは，自動入力（提出者（アグリゲータ用系統コード）を表示）"]
["対象パターン番号は，自動入力（対象各リスト・パターンを数値2桁で表示）"]
["電源等コードは，半角英数字（\"-\",\"_\"も使用可）で10桁以内で入力"]
[]
["②－４　ネガワットリストの入力"]
["ネガワットの具体的な入力規則は下記の通りです。"]
["ネガワットリスト"]
[null,"需要家情報",null,null,null,null,null,null,null,null,null,null,null,"所属小売電気事業者情報",null,"他需要抑制契約の状況"]
["NO","供給地点特定番号",null,null,"供給場所",null,null,"所在地",null,null,"契約電力(kW)","電圧区分","供出方法","小売電気\n事業者\nコード","小売電気事業者名称▲","類型Ⅰ②\n需要抑制BGコード"]
[1,"0311111111111111111111",null,null,"東京工場",null,null,"東京都大田区〇-〇-〇",null,null,5856,"特高","需要抑制","LA2*3","P2Pネット","****3"]
[]
["供給地点特定番号は，需要家を一意に特定する22桁の数字を入力。"]
["需要家名称は，需要家の名称を全角40文字以内で入力。"]
["供給場所は需要家の住所を全角35文字以内で入力。"]
["契約電力(kW)は，需要家の契約電力(kW)を半角整数で入力。"]
["電圧区分は，需要家の供給電圧区分を『特高』，『高圧』，『低圧』から選択。"]
["供出方法は，需要家の調整力供出方法を『需要抑制』，『電源（自家発等）』から選択。"]
["小売電気事業者コードは需要リソースに電気を供給している小売電気事業者の事業者コードを半角英数字5桁で入力。"]
["小売電気事業者名称は，需要リソースに電気を供給している小売電気事業者の名称を全角25文字以内で任意入力。"]
["類型Ⅰ②需要抑制BGコードは，需要家が類型Ⅰ②需要抑制契約を締結している場合，その需要抑制BGコードを半角英数字5桁で入力。類型Ⅰ②需要抑制契約を締結していない場合は，『無』と入力。"]
[]
[]
["②－５　ポジワットリストの入力"]
["ポジワットリストの具体的な入力規則は下記の通りです。"]
["ポジワットリスト"]
[null,"発電所情報",null,null,null,null,null,null,null,null,null,null,null,null,"発電販売計画情報"]
["NO","受電地点特定番号",null,null,"発電所名称",null,"発電場所",null,null,"契約受電電力(kW)","電圧区分","電源種別","発電方式","火力燃料種別","所属\n発電BGコード","所属発電BG名称▲",null,"発電計画用\n系統コード"]
[1,"310122000100100000000",null,null,"○○クリーンセンター",null,"東京都武蔵野市緑町*-**-*",null,null,800,"特高","火力","汽力","LNG","GB8*3","〇〇エナジー",null,"GB8*3"]
[]
["受電地点特定番号は，発電設備の場所を一意に特定する22桁の数字を入力。"]
["発電所名称は，発電所の名称を全角40文字以内で入力。"]
["発電場所は発電所の住所を全角35文字以内で入力。"]
["契約受電電力(kW)は，発電所の契約受電電力(kW)を半角整数で入力。"]
["電圧区分は，発電所の電圧区分を『特高』，『高圧』から選択。"]
["電源種別は，発電所の電源種別を『火力』，『水力』，『太陽光』，『風力』，『地熱』，『蓄電池』，『その他』から選択。"]
["発電方式は，発電所の調整力発電方法を『コンバインドサイクル』，『汽力』，『ディーゼル』，『水力』，『太陽光』，『風力』，『地熱』，『蓄電池』，『その他』から選択。"]
["火力燃料種別は，発電所の調整力火力燃料種別を『原油』，『重油』，『軽油』，『LNG』，『LPG』，『NGL』，『都市ガス』，『灯油』，『石炭』，『木質ペレット』，『その他」』から選択。"]
["所属発電BGコードは，発電所の所属発電BGコードを半角英数字5桁（1文字目「G」）で入力"]
["所属発電BG名称▲は，所属発電所のＢＧ名所を全角25文字以内で任意入力"]
["発電計画用系統コードは，発電販売計画の系統コードを半角英数字5桁で入力。"]

{"sheet":"エラーメッセージ一覧_ポジワットなし","index":5,"n_rows":80,"n_cols":6,"rows_kept":80,"cut":false,"hidden":true,"merged":[]}
["■三次調整力②需要家リスト・パターン入力支援ツール_エラーメッセージ一覧"]
[]
[null,"No.","操作","エラー種別","エラーメッセージ","対処方法"]
[null,1,"「対象商品変更」ボタン押下","選択エラー","変更前後で同一の商品が選択されました。","【商品変更】\n・変更前後で異なる商品を選択してください。"]
[null,{"$f":"B4+1","v":2},"「ネガワットリスト需要家数変更」ボタン押下","入力エラー","増加需要家数を0以上かつxxxx以下の整数で入力して下さい。","【ネガワットリスト需要家数の増加】\n・増加する需要家数を見直してください。（max9999）"]
[null,{"$f":"B5+1","v":3},null,"入力エラー","削除する需要家番号を1～xxの整数で入力して下さい。","【需要家リソース数減少】需要家を1個選択して削除／連続した複数の需要家を削除\n・削除する需要家番号を見直してください。"]
[null,4,null,"入力エラー","現在需要家リソースは存在しないため，これ以上削除できません。","【需要家リソース数減少】需要家を1個選択して削除／連続した複数の需要家を削除\n・削除対象の需要家が存在していません。ネガワットリスト情報を確認してください。"]
[null,5,null,"入力エラー","削除する需要家リソースの開始と終了の番号を入力してください。","【需要家リソース数減少】連続した複数の需要家を削除\n・削除する需要家番号を入力してください。"]
[null,6,null,"入力エラー","削除終了の需要家リソース番号は，削除開始の需要家リソース番号より同じか後にして下さい。","【需要家リソース数減少】連続した複数の需要家を削除\n・削除する需要家番号の開始番号と終了番号を見直してください。"]
[null,7,"「需要家リスト・パターンXML読込」ボタン押下\n「XMLファイル妥当性検証」ボタン押下","XMLエラー","読み込んだXMLファイルは下記の理由で規格に違反しているため、読込を中止します。\nエラー理由：　\n　　　　～","・エラー理由を参照しXMLファイルの指摘箇所を修正してください。"]
[null,8,"画面項目入力（入力規制）","入力エラー","供出可能量(kW)は，半角9桁以内かつ正の整数で入力して下さい。","【ファイル情報】供出可能量(kW)\n・入力値を見直してください。"]
[null,9,null,"入力エラー","適用開始希望年月日は『YYYYMMDD』形式の半角数字8桁で入力して下さい。","【ファイル情報】適用開始希望年月日\n・入力値を見直してください。"]
[null,10,null,"入力エラー","提出先事業者コードは半角英数字5桁で入力して下さい。","【基本情報】_提出先事業者（コード）\n・入力値を見直してください。"]
[null,11,null,"入力エラー","提出先事業者名称は50文字以内で入力して下さい。","【基本情報】_提出先事業者（名称▲）\n・入力値を見直してください。"]
[null,12,null,"入力エラー","送信事業者コードは半角英数字5桁で入力して下さい。","【基本情報】_送信事業者（コード）\n・入力値を見直してください。"]
[null,13,null,"入力エラー","送信事業者名称は50文字以内で入力して下さい。","【基本情報】_送信事業者（名称▲）\n・入力値を見直してください。"]
[null,14,null,"入力エラー","提出者コードは，アグリゲーター用系統コード（半角英数字5桁）を入力して下さい。","【基本情報】_提出者（アグリゲータ用系統コード）（コード）\n・入力値を見直してください。"]
[null,15,null,"入力エラー","提出者名称は50文字以内で入力して下さい。","【基本情報】_提出者（アグリゲータ用系統コード）（名称▲）\n・入力値を見直してください。"]
[null,16,null,"入力エラー","供給地点特定番号は22桁の半角数字で入力して下さい。","【ネガワットリスト】需要家情報_供給地点特定番号\n・入力値を見直してください。"]
[null,17,null,"入力エラー","需要家名称は，50文字以内で入力して下さい。","【ネガワットリスト】需要家情報_需要家名称\n・入力値を見直してください。"]
[null,18,null,"入力エラー","所在地は50文字以内で入力して下さい。","【ネガワットリスト】需要家情報_所在地\n・入力値を見直してください。"]
[null,19,null,"入力エラー","契約電力(kW)は，半角9桁以内かつ正の整数で入力して下さい。","【ネガワットリスト】需要家情報_契約電力(kW)\n・入力値を見直してください。"]
[null,20,null,"入力エラー","小売電気事業者コードは半角英数字5桁で入力して下さい。","【ネガワットリスト】所属小売事業者情報_小売電気事業者コード\n・入力値を見直してください。"]
[null,21,null,"入力エラー","小売電気事業者名称は，50文字以内で入力して下さい。","【ネガワットリスト】所属小売事業者情報_小売電気事業者名称▲\n・入力値を見直してください。"]
[null,22,null,"入力エラー","受電地点特定番号は22桁の半角数字で入力して下さい。","【発電所情報】発電所情報_受電地点特定番号\n・入力値を見直してください。"]
[null,23,null,"入力エラー","発電所名称は50文字以内で入力して下さい。","【発電所情報】発電所情報_発電所名称\n・入力値を見直してください。"]
[null,24,null,"入力エラー","所在地は50文字以内で入力して下さい。","【発電所情報】発電所情報_所在地\n・入力値を見直してください。"]
[null,25,null,"入力エラー","最大受電電力(kW)は，半角9桁以下の正の整数で入力して下さい。","【発電所情報】発電所情報_最大受電電力(kW)\n・入力値を見直してください。"]
[null,26,null,"入力エラー","所属発電BGコードは，半角英数字5桁で入力して下さい。","発電所情報】発電販売計画情報_所属発電BGコード\n・入力値を見直してください。"]
[null,27,null,"入力エラー","所属発電BG名称は50文字以内で入力して下さい。","発電所情報】発電販売計画情報_所属発電BG名称▲\n・入力値を見直してください。"]
[null,28,null,"入力エラー","発電計画用系統コードは，半角英数字5桁で入力して下さい。","発電所情報】発電販売計画情報_発電計画用系統コード\n・入力値を見直してください。"]
[null,29,"「需要家リスト・パターンXML出力」ボタン押下","入力エラー","対象需要家リスト・パターンが選択されていません。","【ファイル情報】対象需要家リスト・パターン\n・リスト・パターンを選択してください。"]
[null,30,null,"入力エラー","対象需要家リスト・パターンに誤りがあります。","【ファイル情報】対象需要家リスト・パターン\n・パターン①～パターン⑳までのいずれかを選択してください。"]
[null,31,null,"入力エラー","供出可能量(kW)は半角数字9桁以内かつ正の整数で入力してください。","【ファイル情報】供出可能量(kW)\n・入力値を見直してください。"]
[null,32,null,"入力エラー","適用開始希望年月日は『YYYYMMDD』形式の半角数字8桁で入力してください。","【ファイル情報】適用開始希望年月日\n・入力値を見直してください。"]
[null,33,null,"入力エラー","適用開始希望年月日は存在する日付で入力してください。","【ファイル情報】適用開始希望年月日\n・存在する日付を入力してください。"]
[null,34,null,"入力エラー","提出先事業者コードは半角英数字5桁で入力してください。","【基本情報】_提出先事業者（コード）\n・入力値を見直してください。"]
[null,{"$f":"B37+1","v":35},null,"入力エラー","提出先事業者名称は50文字以内で入力してください。","【基本情報】_提出先事業者（名称▲）\n・入力値を見直してください。"]
[null,36,null,"入力エラー","送信事業者コードは半角英数字5桁で入力してください。","【基本情報】_送信事業者（コード）\n・入力値を見直してください。"]
[null,37,null,"入力エラー","送信事業者名称は50文字以内で入力してください。","【基本情報】_送信事業者（名称▲）\n・入力値を見直してください。"]
[null,38,null,"入力エラー","提出者コード（アグリゲーター用系統コード）は半角英数字5桁（2桁目『Y』)で入力してください。","【基本情報】_提出者（アグリゲータ用系統コード）（コード）\n・入力値を見直してください。"]
[null,39,null,"入力エラー","提出者名称は50文字以内で入力してください。","【基本情報】_提出者（アグリゲータ用系統コード）（名称▲）\n・入力値を見直してください。"]
[null,40,null,"入力エラー","電源等コードは半角英数字10桁以内で入力してください。","【出力ファイル名情報】_電源等コード\n・入力値を見直してください。"]
[null,41,null,"入力エラー","需要家No.xxの供給地点特定番号に誤りがあります。\n供給地点特定番号は半角数字22桁で入力してください。","【ネガワットリスト】需要家情報_供給地点特定番号\n・入力値を見直してください。"]
[null,42,null,"入力エラー","需要家No.xxの需要家名称に誤りがあります。\n需要家名称は50文字以内で入力してください。","【ネガワットリスト】需要家情報_需要家名称\n・入力値を見直してください。"]
[null,43,null,"入力エラー","需要家No.xxの所在地に誤りがあります。\n所在地は50文字以内で入力してください。","【ネガワットリスト】需要家情報_所在地\n・入力値を見直してください。"]
[null,44,null,"入力エラー","需要家No.xxの契約電力(kW)に誤りがあります。\n契約電力(kW)は半角9桁以内かつ正の整数で入力してください。","【ネガワットリスト】需要家情報_契約電力(kW)\n・入力値を見直してください。"]
[null,45,null,"入力エラー","需要家No.xxの電圧区分が選択されていません。","【ネガワットリスト】需要家情報_電圧区分\n・入力値を見直してください。"]
[null,46,null,"入力エラー","需要家No.xxの供出方法が選択されていません。","【ネガワットリスト】需要家情報_供出方法\n・入力値を見直してください。"]
[null,47,null,"入力エラー","需要家No.xxの供出方法に誤りがあります。","【ネガワットリスト】需要家情報_供出方法\n・需要抑制、電源（自家発等）のいずれかを選択してください。"]
[null,48,null,"入力エラー","需要家No.xxの小売電気事業者コードに誤りがあります。\n小売電気事業者コードは半角英数字5桁で入力してください。","【ネガワットリスト】所属小売事業者情報_小売電気事業者コード\n・入力値を見直してください。"]
[null,49,null,"入力エラー","需要家No.xxの小売電気事業者名称に誤りがあります。\n小売電気事業者名称は50文字以内で入力してください。","【ネガワットリスト】所属小売事業者情報_小売電気事業者名称▲\n・入力値を見直してください。"]
[null,{"$f":"B52+1","v":50},null,"入力エラー","需要家No.xxの需要抑制BGコードに誤りがあります。\n類型Ⅰ②需要抑制契約を締結していない場合，需要抑制BGコードは『無』と入力し，類型Ⅰ②需要抑制契約を締結している場合，需要抑制BGコードは半角英数字5桁で入力してください。","【ネガワットリスト】他需要抑制契約の状況_類型Ⅰ②需要抑制BGコード\n・入力値を見直してください。"]
[null,51,null,"入力エラー","発電所No.xxの受電地点特定番号に誤りがあります。\n受電地点特定番号は半角数字22桁で入力してください。","【発電所情報】発電所情報_受電地点特定番号\n・入力値を見直してください。"]
[null,52,null,"入力エラー","発電所No.xxの発電所名称に誤りがあります。\n発電所名称は50文字以内で入力してください。","【発電所情報】発電所情報_発電所名称\n・入力値を見直してください。"]
[null,53,null,"入力エラー","発電所No.xxの所在地に誤りがあります。\n所在地は50文字以内で入力してください。","【発電所情報】発電所情報_所在地\n・入力値を見直してください。"]
[null,54,null,"入力エラー","発電所No.xxの最大受電電力(kW)に誤りがあります。\n最大受電電力(kW)は半角9桁以内かつ正の整数で入力してください。","【発電所情報】発電所情報_最大受電電力(kW)\n・入力値を見直してください。"]
[null,55,null,"入力エラー","発電所No.xxの電圧区分が選択されていません。","【発電所情報】発電所情報_電圧区分\n・入力値を見直してください。"]
[null,56,null,"入力エラー","発電所No.xxの電源の種別が選択されていません。","【発電所情報】発電所情報_電源の種別\n・入力値を見直してください。"]
[null,57,null,"入力エラー","発電所No.xxの電源の種別に誤りがあります。","【発電所情報】発電所情報_電源の種別\n・火力～その他までのいずれかを選択してください。"]
[null,58,null,"相関エラー","発電所No.xxの発電方式が選択されていません。","【発電所情報】発電所情報_発電方式\n・入力値を見直してください。"]
[null,59,null,"相関エラー","発電所No.xxの『電源の種別』と『発電方式』が整合していません。『電源の種別』で『火力』を選択した場合，『発電方式』は『コンバインドサイクル』，『汽力』，『ディーゼル』のいずれかから選択してください。","【発電所情報】発電所情報_電源の種別、発電方式\n・電源の種別と発電方式の組合せを見直してください。"]
[null,60,null,"相関エラー","発電所No.xxの『電源の種別』と『発電方式』が整合していません。『電源の種別』で『水力』を選択した場合，『発電方式』も『水力』を選択してください。","【発電所情報】発電所情報_電源の種別、発電方式\n・電源の種別と発電方式の組合せを見直してください。"]
[null,61,null,"相関エラー","発電所No.xxの『電源の種別』と『発電方式』が整合していません。『電源の種別』で『太陽光』を選択した場合，『発電方式』も『太陽光』を選択してください。","【発電所情報】発電所情報_電源の種別、発電方式\n・電源の種別と発電方式の組合せを見直してください。"]
[null,62,null,"相関エラー","発電所No.xxの『電源の種別』と『発電方式』が整合していません。『電源の種別』で『風力』を選択した場合，『発電方式』も『風力』を選択してください。","【発電所情報】発電所情報_電源の種別、発電方式\n・電源の種別と発電方式の組合せを見直してください。"]
[null,63,null,"相関エラー","発電所No.xxの『電源の種別』と『発電方式』が整合していません。『電源の種別』で『地熱』を選択した場合，『発電方式』は『汽力』を選択してください。","【発電所情報】発電所情報_電源の種別、発電方式\n・電源の種別と発電方式の組合せを見直してください。"]
[null,64,null,"相関エラー","発電所No.xxの『電源の種別』と『発電方式』が整合していません。『電源の種別』で『蓄電池』を選択した場合，『発電方式』も『蓄電池』を選択してください。","【発電所情報】発電所情報_電源の種別、発電方式\n・電源の種別と発電方式の組合せを見直してください。"]
[null,65,null,"相関エラー","発電所No.xxの『電源の種別』と『発電方式』が整合していません。『電源の種別』で『その他』を選択した場合，『発電方式』も『その他』を選択してください。","【発電所情報】発電所情報_電源の種別、発電方式\n・電源の種別と発電方式の組合せを見直してください。"]
[null,66,null,"入力エラー","発電所No.xxの火力燃料種別が選択されていません。","【発電所情報】発電所情報_電源の種別、火力燃料種別\n・入力値を見直してください。"]
[null,{"$f":"B69+1","v":67},null,"入力エラー","発電所No.xxの火力燃料種別に誤りがあります。","【発電所情報】発電所情報_電源の種別、火力燃料種別\n・原油～その他までのいずれかを選択してください。"]
[null,68,null,"相関エラー","発電所No.xxの『電源の種別』と『火力燃料種別』が整合していません。『電源の種別』で『水力』を選択した場合，『火力燃料種別』は『その他』を選択してください。","【発電所情報】発電所情報_電源の種別、火力燃料種別\n・電源の種別と火力燃料種別の組合せを見直してください。"]
[null,{"$f":"B71+1","v":69},null,"相関エラー","発電所No.xxの『電源の種別』と『火力燃料種別』が整合していません。『電源の種別』で『太陽光』を選択した場合，『火力燃料種別』は『その他』を選択してください。","【発電所情報】発電所情報_電源の種別、火力燃料種別\n・電源の種別と火力燃料種別の組合せを見直してください。"]
[null,70,null,"相関エラー","発電所No.xxの『電源の種別』と『発電方式』が整合していません。『電源の種別』で『風力』を選択した場合，『火力燃料種別』は『その他』を選択してください。","【発電所情報】発電所情報_電源の種別、火力燃料種別\n・電源の種別と火力燃料種別の組合せを見直してください。"]
[null,71,null,"相関エラー","発電所No.xxの『電源の種別』と『発電方式』が整合していません。『電源の種別』で『地熱』を選択した場合，『火力燃料種別』は『その他』を選択してください。","【発電所情報】発電所情報_電源の種別、火力燃料種別\n・電源の種別と火力燃料種別の組合せを見直してください。"]
[null,72,null,"相関エラー","発電所No.xxの『電源の種別』と『発電方式』が整合していません。『電源の種別』で『蓄電池』を選択した場合，『火力燃料種別』は『その他』を選択してください。","【発電所情報】発電所情報_電源の種別、火力燃料種別\n・電源の種別と火力燃料種別の組合せを見直してください。"]
[null,73,null,"相関エラー","発電所No.xxの『電源の種別』と『発電方式』が整合していません。『電源の種別』で『その他』を選択した場合，『火力燃料種別』も『その他』を選択してください。","【発電所情報】発電所情報_電源の種別、火力燃料種別\n・電源の種別と火力燃料種別の組合せを見直してください。"]
[null,74,null,"入力エラー","発電所No.xxの所属発電BGコードに誤りがあります。\n所属発電BGコードは半角英数字5桁（1桁目『G』)で入力してください。","【発電所情報】発電販売計画情報_所属発電BGコード\n・入力値を見直してください。"]
[null,75,null,"入力エラー","発電所No.xxの所属発電BG名称に誤りがあります。\n所属発電BG名称は50文字以内で入力してください。","【発電所情報】発電販売計画情報_所属発電BG名称▲\n・入力値を見直してください。"]
[null,76,null,"入力エラー","発電所No.xxの発電計画用系統コードに誤りがあります。\n発電計画用系統コードは半角英数字5桁で入力してください。","【発電所情報】発電販売計画情報_発電計画用系統コード\n・入力値を見直してください。"]
[null,77,null,"XMLエラー","読み込んだXMLファイルは下記の理由で規格に違反しているため、読込を中止します。\nエラー理由：　\n　　　　～","エラー理由を参照し入力情報の指摘箇所を修正してください。"]

{"sheet":"エラーメッセージ一覧","index":6,"n_rows":88,"n_cols":6,"rows_kept":88,"cut":false,"hidden":false,"merged":[]}
["■各リスト・パターン入力支援ツール_エラーメッセージ一覧"]
[]
[null,"No.","操作","エラー種別","エラーメッセージ","対処方法"]
[null,{"$f":"ROW()-3","v":1},"「ネガワットリスト需要家数変更」ボタン押下","入力エラー","増加需要家数を1以上かつxxxx以下の整数で入力して下さい。","【ネガワットリスト需要家数の増加】\n・増加する需要家数を見直してください。（max9999）"]
[null,2,null,"入力エラー","削除する需要家番号を1～xxの整数で入力して下さい。","【需要家リソース数減少】需要家を1個選択して削除／連続した複数の需要家を削除\n・削除する需要家番号を見直してください。"]
[null,3,null,"入力エラー","現在需要家リソースは存在しないため，これ以上削除できません。","【需要家リソース数減少】\n・削除対象の需要家が存在していません。ネガワットリスト情報を確認してください。"]
[null,4,null,"入力エラー","削除する需要家リソースの開始と終了の番号を入力してください。","【需要家リソース数減少】連続した複数の需要家を削除\n・削除する需要家番号を入力してください。"]
[null,5,null,"入力エラー","削除終了の需要家リソース番号は，削除開始の需要家リソース番号より同じか後にして下さい。","【需要家リソース数減少】連続した複数の需要家を削除\n・削除する需要家番号の開始番号と終了番号を見直してください。"]
[null,6,null,"入力エラー","現在需要家リソースは、xx個以上削除できません。xx個以下になるように指定してください。","【需要家リソース数減少】連続した複数の需要家を削除\n・需要家数・発電所数をどちらも0個にすることは出来ません。ネガワットリスト情報を確認してください。"]
[null,7,null,"入力エラー","現在需要家リソースは、これ以上削除できません。","【需要家リソース数減少】\n・発電所が存在していないため、需要家数を0個にすることは出来ません。ネガワットリスト情報およびポジワットリスト情報を確認してください。"]
[null,8,"「ポジワットリスト発電所数変更」ボタン押下","入力エラー","増加発電所数を1以上かつｘｘｘ以下の整数で入力して下さい。","【ポジワットリスト発電所数の増加】\n・増加させる発電所数を見直してください。（max999）"]
[null,9,null,"入力エラー","削除する発電所番号を1～xxxの整数で入力して下さい。","【発電所リソース数減少】発電所を1個選択して削除／連続した複数の発電所を削除\n・削除する発電所番号を見直してください。"]
[null,10,null,"入力エラー","削除する発電所リソースの開始と終了の番号を入力してください。","【発電所リソース数減少】発電所を1個選択して削除／連続した複数の発電所を削除\n・削除対象の発電所を入力してください。"]
[null,11,null,"入力エラー","現在発電所リソースは存在しないため，これ以上削除できません。","【発電所リソース数減少】\n・削除対象の発電所が存在していません。ポジワットリスト情報を確認してください。"]
[null,12,null,"入力エラー","削除終了の発電所リソース番号は，削除開始の発電所リソース番号より同じか後にして下さい。","【発電所リソース数減少】連続した複数の発電所を削除\n・削除する需要家番号の開始番号と終了番号を見直してください。"]
[null,{"$f":"ROW()-3","v":13},null,"入力エラー","現在発電所リソースは、xx個以上削除できません。xx個以下になるように指定してください。","【発電所リソース数減少】連続した複数の発電所を削除\n・需要家数・発電所数をどちらも0個にすることは出来ません。ポジワットリスト情報を確認してください。"]
[null,{"$f":"ROW()-3","v":14},null,"入力エラー","現在発電所リソースは、これ以上削除できません。","【発電所リソース数減少】\n・需要家が存在していないため、発電所数を0個にすることは出来ません。ネガワットリスト情報およびポジワットリスト情報を確認してください。"]
[null,15,"「各リスト・パターンXML読込」ボタン押下\n「XMLファイル妥当性検証」ボタン押下","XMLエラー","読み込んだXMLファイルは下記の理由で規格に違反しているため、読込を中止します。\nエラー理由：　\n　　　　～","・エラー理由を参照しXMLファイルの指摘箇所を修正してください。"]
[null,16,"画面項目入力（入力規制）","入力エラー","供出可能量(kW)は，半角9桁以内かつ正の整数で入力して下さい。","【ファイル情報】供出可能量(kW)\n・入力値を見直してください。"]
[null,17,null,"入力エラー","適用開始希望年月日は『YYYYMMDD』形式の半角数字8桁で入力して下さい。","【ファイル情報】適用開始希望年月日\n・入力値を見直してください。"]
[null,18,null,"入力エラー","提出先事業者コードは半角英数字5桁で入力して下さい。","【基本情報】_提出先事業者（コード）\n・入力値を見直してください。"]
[null,19,null,"入力エラー","提出先事業者名称は全角25文字以内で入力して下さい。","【基本情報】_提出先事業者（名称▲）\n・入力値を見直してください。"]
[null,20,null,"入力エラー","送信事業者コードは半角英数字5桁で入力して下さい。","【基本情報】_送信事業者（コード）\n・入力値を見直してください。"]
[null,21,null,"入力エラー","送信事業者名称は全角25文字以内で入力して下さい。","【基本情報】_送信事業者（名称▲）\n・入力値を見直してください。"]
[null,22,null,"入力エラー","提出者コードは，アグリゲーター用系統コード（半角英数字5桁）を入力して下さい。","【基本情報】_提出者（アグリゲータ用系統コード）（コード）\n・入力値を見直してください。"]
[null,23,null,"入力エラー","提出者名称は全角25文字以内で入力して下さい。","【基本情報】_提出者（アグリゲータ用系統コード）（名称▲）\n・入力値を見直してください。"]
[null,24,null,"入力エラー","供給地点特定番号は22桁の半角数字で入力して下さい。","【ネガワットリスト】需要家情報_供給地点特定番号\n・入力値を見直してください。"]
[null,25,null,"入力エラー","需要家名称は，全角40文字以内で入力して下さい。","【ネガワットリスト】需要家情報_需要家名称\n・入力値を見直してください。"]
[null,26,null,"入力エラー","供給場所は全角35文字以内で入力して下さい。","【ネガワットリスト】需要家情報_供給場所\n・入力値を見直してください。"]
[null,27,null,"入力エラー","契約電力(kW)は，半角9桁以内かつ正の整数で入力して下さい。","【ネガワットリスト】需要家情報_契約電力(kW)\n・入力値を見直してください。"]
[null,28,null,"入力エラー","小売電気事業者コードは半角英数字5桁で入力して下さい。","【ネガワットリスト】所属小売事業者情報_小売電気事業者コード\n・入力値を見直してください。"]
[null,29,null,"入力エラー","小売電気事業者名称は，全角25文字以内で入力して下さい。","【ネガワットリスト】所属小売事業者情報_小売電気事業者名称▲\n・入力値を見直してください。"]
[null,30,null,"入力エラー","受電地点特定番号は22桁の半角数字で入力して下さい。","【ポジワットリスト】発電所情報_受電地点特定番号\n・入力値を見直してください。"]
[null,31,null,"入力エラー","発電所名称は全角40文字以内で入力して下さい。","【ポジワットリスト】発電所情報_発電所名称\n・入力値を見直してください。"]
[null,32,null,"入力エラー","発電場所は全角35文字以内で入力して下さい。","【ポジワットリスト】発電所情報_発電場所\n・入力値を見直してください。"]
[null,33,null,"入力エラー","契約受電電力(kW)は，半角9桁以下の正の整数で入力して下さい。","【ポジワットリスト】発電所情報_契約受電電力(kW)\n・入力値を見直してください。"]
[null,34,null,"入力エラー","所属発電BGコードは，半角英数字5桁で入力して下さい。","【ポジワットリスト】発電販売計画情報_所属発電BGコード\n・入力値を見直してください。"]
[null,35,null,"入力エラー","所属発電BG名称は全角25文字以内で入力して下さい。","【ポジワットリスト】発電販売計画情報_所属発電BG名称▲\n・入力値を見直してください。"]
[null,36,null,"入力エラー","発電計画用系統コードは，半角英数字5桁で入力して下さい。","【ポジワットリスト】発電販売計画情報_発電計画用系統コード\n・入力値を見直してください。"]
[null,{"$f":"ROW()-3","v":37},"「各リスト・パターンXML出力」ボタン押下","入力エラー","対象各リスト・パターンが選択されていません。","【ファイル情報】対象各リスト・パターン\n・リスト・パターンを選択してください。"]
[null,38,null,"入力エラー","対象各リスト・パターンに誤りがあります。","【ファイル情報】対象各リスト・パターン\n・パターン①～パターン⑳までのいずれかを選択してください。"]
[null,39,null,"入力エラー","供出可能量(kW)は半角数字9桁以内かつ正の整数で入力してください。","【ファイル情報】供出可能量(kW)\n・入力値を見直してください。"]
[null,40,null,"入力エラー","適用開始希望年月日は『YYYYMMDD』形式の半角数字8桁で入力してください。","【ファイル情報】適用開始希望年月日\n・入力値を見直してください。"]
[null,41,null,"入力エラー","適用開始希望年月日は存在する日付で入力してください。","【ファイル情報】適用開始希望年月日\n・存在する日付を入力してください。"]
[null,42,null,"入力エラー","提出先事業者コードは半角英数字5桁で入力してください。","【基本情報】_提出先事業者（コード）\n・入力値を見直してください。"]
[null,43,null,"入力エラー","提出先事業者名称は全角25文字以内で入力してください。","【基本情報】_提出先事業者（名称▲）\n・入力値を見直してください。"]
[null,44,null,"入力エラー","送信事業者コードは半角英数字5桁で入力してください。","【基本情報】_送信事業者（コード）\n・入力値を見直してください。"]
[null,45,null,"入力エラー","送信事業者名称は全角25文字以内で入力してください。","【基本情報】_送信事業者（名称▲）\n・入力値を見直してください。"]
[null,46,null,"入力エラー","提出者コード（アグリゲーター用系統コード）は半角英数字5桁（2桁目『Y』)で入力してください。","【基本情報】_提出者（アグリゲータ用系統コード）（コード）\n・入力値を見直してください。"]
[null,47,null,"入力エラー","提出者名称は全角25文字以内で入力してください。","【基本情報】_提出者（アグリゲータ用系統コード）（名称▲）\n・入力値を見直してください。"]
[null,48,null,"入力エラー","電源等コードは半角英数字10桁以内で入力してください。","【出力ファイル名情報】_電源等コード\n・入力値を見直してください。"]
[null,49,null,"入力エラー","需要家No.xxの供給地点特定番号に誤りがあります。\n供給地点特定番号は半角数字22桁で入力してください。","【ネガワットリスト】需要家情報_供給地点特定番号\n・入力値を見直してください。"]
[null,50,null,"入力エラー","需要家No.xxの需要家名称に誤りがあります。\n需要家名称は全角40文字以内で入力してください。","【ネガワットリスト】需要家情報_需要家名称\n・入力値を見直してください。"]
[null,51,null,"入力エラー","需要家No.xxの供給場所に誤りがあります。\n供給場所は全角35文字以内で入力してください。","【ネガワットリスト】需要家情報_供給場所\n・入力値を見直してください。"]
[null,52,null,"入力エラー","需要家No.xxの契約電力(kW)に誤りがあります。\n契約電力(kW)は半角9桁以内かつ正の整数で入力してください。","【ネガワットリスト】需要家情報_契約電力(kW)\n・入力値を見直してください。"]
[null,53,null,"入力エラー","需要家No.xxの電圧区分が選択されていません。","【ネガワットリスト】需要家情報_電圧区分\n・入力値を見直してください。"]
[null,54,null,"入力エラー","需要家No.xxの供出方法が選択されていません。","【ネガワットリスト】需要家情報_供出方法\n・入力値を見直してください。"]
[null,55,null,"入力エラー","需要家No.xxの供出方法に誤りがあります。","【ネガワットリスト】需要家情報_供出方法\n・需要抑制、電源（自家発等）のいずれかを選択してください。"]
[null,56,null,"入力エラー","需要家No.xxの小売電気事業者コードに誤りがあります。\n小売電気事業者コードは半角英数字5桁で入力してください。","【ネガワットリスト】所属小売事業者情報_小売電気事業者コード\n・入力値を見直してください。"]
[null,57,null,"入力エラー","需要家No.xxの小売電気事業者名称に誤りがあります。\n小売電気事業者名称は全角25文字以内で入力してください。","【ネガワットリスト】所属小売事業者情報_小売電気事業者名称▲\n・入力値を見直してください。"]
[null,58,null,"入力エラー","需要家No.xxの需要抑制BGコードに誤りがあります。\n類型Ⅰ②需要抑制契約を締結していない場合，需要抑制BGコードは『無』と入力し，類型Ⅰ②需要抑制契約を締結している場合，需要抑制BGコードは半角英数字5桁で入力してください。","【ネガワットリスト】他需要抑制契約の状況_類型Ⅰ②需要抑制BGコード\n・入力値を見直してください。"]
[null,59,null,"入力エラー","発電所No.xxの受電地点特定番号に誤りがあります。\n受電地点特定番号は半角数字22桁で入力してください。","【ポジワットリスト】発電所情報_受電地点特定番号\n・入力値を見直してください。"]
[null,60,null,"入力エラー","発電所No.xxの発電所名称に誤りがあります。\n発電所名称は全角40文字以内で入力してください。","【ポジワットリスト】発電所情報_発電所名称\n・入力値を見直してください。"]
[null,61,null,"入力エラー","発電所No.xxの発電場所に誤りがあります。\n発電場所は全角35文字以内で入力してください。","【ポジワットリスト】発電所情報_発電場所\n・入力値を見直してください。"]
[null,62,null,"入力エラー","発電所No.xxの契約受電電力(kW)に誤りがあります。\n契約受電電力(kW)は半角9桁以内かつ正の整数で入力してください。","【ポジワットリスト】発電所情報_契約受電電力(kW)\n・入力値を見直してください。"]
[null,63,null,"入力エラー","発電所No.xxの電圧区分が選択されていません。","【ポジワットリスト】発電所情報_電圧区分\n・入力値を見直してください。"]
[null,64,null,"入力エラー","発電所No.xxの電源種別が選択されていません。","【ポジワットリスト】発電所情報_電源種別\n・入力値を見直してください。"]
[null,65,null,"入力エラー","発電所No.xxの電源種別に誤りがあります。","【ポジワットリスト】発電所情報_電源種別\n・火力～その他までのいずれかを選択してください。"]
[null,66,null,"相関エラー","発電所No.xxの発電方式が選択されていません。","【ポジワットリスト】発電所情報_発電方式\n・入力値を見直してください。"]
[null,67,null,"相関エラー","発電所No.xxの『電源種別』と『発電方式』が整合していません。『電源種別』で『火力』を選択した場合，『発電方式』は『コンバインドサイクル』，『汽力』，『ディーゼル』のいずれかから選択してください。","【ポジワットリスト】発電所情報_電源種別、発電方式\n・電源種別と発電方式の組合せを見直してください。"]
[null,68,null,"相関エラー","発電所No.xxの『電源種別』と『発電方式』が整合していません。『電源種別』で『水力』を選択した場合，『発電方式』も『水力』を選択してください。","【ポジワットリスト】発電所情報_電源種別、発電方式\n・電源種別と発電方式の組合せを見直してください。"]
[null,{"$f":"ROW()-3","v":69},null,"相関エラー","発電所No.xxの『電源種別』と『発電方式』が整合していません。『電源種別』で『太陽光』を選択した場合，『発電方式』も『太陽光』を選択してください。","【ポジワットリスト】発電所情報_電源種別、発電方式\n・電源種別と発電方式の組合せを見直してください。"]
[null,70,null,"相関エラー","発電所No.xxの『電源種別』と『発電方式』が整合していません。『電源種別』で『風力』を選択した場合，『発電方式』も『風力』を選択してください。","【ポジワットリスト】発電所情報_電源種別、発電方式\n・電源種別と発電方式の組合せを見直してください。"]
[null,71,null,"相関エラー","発電所No.xxの『電源種別』と『発電方式』が整合していません。『電源種別』で『地熱』を選択した場合，『発電方式』は『地熱』を選択してください。","【ポジワットリスト】発電所情報_電源種別、発電方式\n・電源種別と発電方式の組合せを見直してください。"]
[null,72,null,"相関エラー","発電所No.xxの『電源種別』と『発電方式』が整合していません。『電源種別』で『蓄電池』を選択した場合，『発電方式』も『蓄電池』を選択してください。","【ポジワットリスト】発電所情報_電源種別、発電方式\n・電源種別と発電方式の組合せを見直してください。"]
[null,73,null,"相関エラー","発電所No.xxの『電源種別』と『発電方式』が整合していません。『電源種別』で『その他』を選択した場合，『発電方式』も『その他』を選択してください。","【ポジワットリスト】発電所情報_電源種別、発電方式\n・電源種別と発電方式の組合せを見直してください。"]
[null,74,null,"入力エラー","発電所No.xxの火力燃料種別が選択されていません。","【ポジワットリスト】発電所情報_電源種別、火力燃料種別\n・入力値を見直してください。"]
[null,75,null,"入力エラー","発電所No.xxの火力燃料種別に誤りがあります。","【ポジワットリスト】発電所情報_電源種別、火力燃料種別\n・原油～その他までのいずれかを選択してください。"]
[null,76,null,"相関エラー","発電所No.xxの『電源種別』と『火力燃料種別』が整合していません。『電源種別』で『水力』を選択した場合，『火力燃料種別』は『その他』を選択してください。","【ポジワットリスト】発電所情報_電源種別、火力燃料種別\n・電源種別と火力燃料種別の組合せを見直してください。"]
[null,77,null,"相関エラー","発電所No.xxの『電源種別』と『火力燃料種別』が整合していません。『電源種別』で『太陽光』を選択した場合，『火力燃料種別』は『その他』を選択してください。","【ポジワットリスト】発電所情報_電源種別、火力燃料種別\n・電源種別と火力燃料種別の組合せを見直してください。"]
[null,78,null,"相関エラー","発電所No.xxの『電源種別』と『発電方式』が整合していません。『電源種別』で『風力』を選択した場合，『火力燃料種別』は『その他』を選択してください。","【ポジワットリスト】発電所情報_電源種別、火力燃料種別\n・電源種別と火力燃料種別の組合せを見直してください。"]
[null,79,null,"相関エラー","発電所No.xxの『電源種別』と『発電方式』が整合していません。『電源種別』で『地熱』を選択した場合，『火力燃料種別』は『その他』を選択してください。","【ポジワットリスト】発電所情報_電源種別、火力燃料種別\n・電源種別と火力燃料種別の組合せを見直してください。"]
[null,80,null,"相関エラー","発電所No.xxの『電源種別』と『発電方式』が整合していません。『電源種別』で『蓄電池』を選択した場合，『火力燃料種別』は『その他』を選択してください。","【ポジワットリスト】発電所情報_電源種別、火力燃料種別\n・電源種別と火力燃料種別の組合せを見直してください。"]
[null,81,null,"相関エラー","発電所No.xxの『電源種別』と『発電方式』が整合していません。『電源種別』で『その他』を選択した場合，『火力燃料種別』も『その他』を選択してください。","【ポジワットリスト】発電所情報_電源種別、火力燃料種別\n・電源種別と火力燃料種別の組合せを見直してください。"]
[null,82,null,"入力エラー","発電所No.xxの所属発電BGコードに誤りがあります。\n所属発電BGコードは半角英数字5桁（1桁目『G』)で入力してください。","【ポジワットリスト】発電販売計画情報_所属発電BGコード\n・入力値を見直してください。"]
[null,83,null,"入力エラー","発電所No.xxの所属発電BG名称に誤りがあります。\n所属発電BG名称は全角25文字以内で入力してください。","【ポジワットリスト】発電販売計画情報_所属発電BG名称▲\n・入力値を見直してください。"]
[null,84,null,"入力エラー","発電所No.xxの発電計画用系統コードに誤りがあります。\n発電計画用系統コードは半角英数字5桁で入力してください。","【ポジワットリスト】発電販売計画情報_発電計画用系統コード\n・入力値を見直してください。"]
[null,85,null,"XMLエラー","読み込んだXMLファイルは下記の理由で規格に違反しているため、読込を中止します。\nエラー理由：　\n　　　　～","エラー理由を参照し入力情報の指摘箇所を修正してください。"]

{"sheet":"Posiwatt_Sheet","index":7,"n_rows":3,"n_cols":14,"rows_kept":3,"cut":false,"hidden":true,"merged":[[0,2,0,13],[1,3,1,10],[1,11,1,13]]}
[null,null,"ポジワットリスト"]
[null,null,null,"発電所情報",null,null,null,null,null,null,null,"発電販売計画情報"]
[null,null,"NO","受電地点特定番号","発電所名称","発電場所","契約受電電力(kW)","電圧区分","電源種別","発電方式","火力燃料種別","所属発電\nBGコード","所属発電BG名称▲","発電計画用\n系統コード"]

{"sheet":"Add_Resource_Style","index":8,"n_rows":24,"n_cols":14,"rows_kept":24,"cut":false,"hidden":true,"merged":[[14,2,14,11],[20,2,20,13],[21,3,21,10],[21,11,21,13],[15,3,15,8],[15,9,15,10]]}
[]
[]
[]
[]
[]
[]
[]
[]
[]
[]
[]
[]
[]
[]
[null,null,"　　　　　　　　　　　　　　　　　　　　　　　　　　　　　　　　　　　　　　　　　　　　　　　　　　ネガワットリスト"]
[null,null,null,"需要家情報",null,null,null,null,null,"所属小売事業者情報",null,"他需要抑制契約の状況"]
[null,null,"NO","供給地点特定番号","需要家名称","供給場所","契約電力(kW)","電圧区分","供出方法","小売電気事業者コード","小売電気事業者名称▲","類型Ⅰ②\n需要抑制BGコード"]
[null,null,1]
[]
[]
[null,null,"　　　　　　　　　　　　　　　　　　　　　　　　　　　　　　　　　　　　　　　　　　　　　　　　　　ポジワットリスト"]
[null,null,null,"発電所情報",null,null,null,null,null,null,null,"発電販売計画情報"]
[null,null,"NO","受電地点特定番号","発電所名称","発電場所","契約受電電力(kW)","電圧区分","電源種別","発電方式","火力燃料種別","所属発電\nBGコード","所属発電BG名称▲","発電計画用\n系統コード"]
[null,null,1]

{"sheet":"XSD(0231)","index":9,"n_rows":403,"n_cols":4,"rows_kept":403,"cut":false,"hidden":true,"merged":[]}
["<?xml version=\"1.0\" encoding=\"UTF-8\" ?>"]
["<xsd:schema xmlns:xsd=\"http://www.w3.org/2001/XMLSchema\" elementFormDefault=\"qualified\" attributeFormDefault=\"unqualified\">"]
[]
["<!--各リスト・パターン (0231) -->"]
["<!--各リスト 2022.02 rev 1.0 Release -->"]
[]
[]
["<!--メッセージグループヘッダ-->"]
[null,"<xsd:element name=\"MMS-MSG\" type=\"TypeMMS-MSG\" />"]
[null,"<xsd:complexType name=\"TypeMMS-MSG\">"]
[null,null,"<xsd:sequence>"]
[null,null,null,"<xsd:element name=\"JPMGRP\" type=\"TypeJPMGRP\" />"]
[null,null,"</xsd:sequence>"]
[null,null,"<!-- BPID機関コード -->"]
[null,null,"<xsd:attribute name=\"BPID\"    type=\"CdC10-OCTO\"   use=\"required\" />"]
[null,null,"<!-- BPID副機関コード -->"]
[null,null,"<xsd:attribute name=\"BPIDSUB\" type=\"CdC11-W9\"     use=\"required\" />"]
[null,null,"<!-- 各BP標準の版 -->"]
[null,null,"<xsd:attribute name=\"BPIDVER\" type=\"CdC12-3A\"   use=\"required\" />"]
[null,null,"<!-- 情報区分コード -->"]
[null,null,"<xsd:attribute name=\"MSGID\"   type=\"CdC14\"      use=\"required\" />"]
[null,null,"<!-- マッピング規則の版 -->"]
[null,null,"<xsd:attribute name=\"MAPVER\"  type=\"CdC21\"   use=\"required\" />"]
[null,"</xsd:complexType>"]
[]
[null,"<!--メッセージ定義-->"]
[null,"<xsd:complexType name=\"TypeJPMGRP\">"]
[null,null,"<xsd:sequence>"]
[null,null,null,"<!-- メッセージグループヘッダ -->"]
[null,null,null,"<xsd:element name=\"JPMGH\" type=\"TypeJPMGH\" />"]
[null,null,null,"<!-- 業務メッセージ -->"]
[null,null,null,"<xsd:element name=\"JPTRM\" type=\"TypeJPTRM\" />"]
[null,null,"</xsd:sequence>"]
[null,null,"<!-- メッセージグループの属性定義 -->"]
[null,null,"<!-- メッセージグループのシーケンス番号 -->"]
[null,null,"<xsd:attribute name=\"SEQ\" type=\"NI5\" use=\"required\" />    "]
[null,"</xsd:complexType>"]
[]
["<!--メッセージグループヘッダ -->"]
[null,"<xsd:complexType name=\"TypeJPMGH\">"]
[null,null,"<xsd:sequence>"]
[null,null,null,"<!-- 運用モード -->"]
[null,null,null,"<xsd:element name=\"JPC03\" type=\"CdC03\"/>  "]
[null,null,null,"<!-- 発信者コード --> "]
[null,null,null,"<xsd:element name=\"JPC06\" type=\"CdC06\"/>  "]
[null,null,null,"<!-- 受信者コード -->"]
[null,null,null,"<xsd:element name=\"JPC09\" type=\"CdC09\"/>   "]
[null,null,null,"<!-- BPID機関コード -->"]
[null,null,null,"<xsd:element name=\"JPC10\" type=\"CdC10-OCTO\" /> "]
[null,null,null,"<!-- BPID副機関コード -->"]
[null,null,null,"<xsd:element name=\"JPC11\" type=\"CdC11-W9\" />"]
[null,null,null,"<!-- BPIDVER -->"]
[null,null,null,"<xsd:element name=\"JPC12\" type=\"CdC12-3A\" />"]
[null,null,null,"<!-- 情報区分コード -->"]
[null,null,null,"<xsd:element name=\"JPC14\" type=\"CdC14\"/>"]
[null,null,null,"<!-- 作成日付時刻 -->"]
[null,null,null,"<xsd:element name=\"JPC19\" type=\"DT_YYMMDDHHMMSS\" />"]
[null,null,null,"<!-- 構文規則識別版数 -->"]
[null,null,null,"<xsd:element name=\"JPC21\" type=\"CdC21\"/>"]
[null,null,"</xsd:sequence>"]
[null,"</xsd:complexType>"]
[]
["<!--業務メッセージ -->"]
[null,"<xsd:complexType name=\"TypeJPTRM\">"]
[null,null,"<xsd:sequence>"]
[null,null,null,"<!-- 情報区分コード -->"]
[null,null,null,"<xsd:element name=\"JP00002\" type=\"STR4S\"/>"]
[null,null,null,"<!-- 情報区分名称 -->"]
[null,null,null,"<xsd:element name=\"JP06170\" type=\"STR50\" minOccurs=\"0\" maxOccurs=\"1\" />"]
[null,null,null,"<!-- 送信者コード -->"]
[null,null,null,"<xsd:element name=\"JP06110\" type=\"STR5S\" />"]
[null,null,null,"<!-- 送信者名称 -->"]
[null,null,null,"<xsd:element name=\"JP06111\" type=\"STR50\" minOccurs=\"0\" maxOccurs=\"1\" />"]
[null,null,null,"<!-- 提出先事業者コード -->"]
[null,null,null,"<xsd:element name=\"JP06358\" type=\"STR5S\" />"]
[null,null,null,"<!-- 提出先事業者名称 -->"]
[null,null,null,"<xsd:element name=\"JP06359\" type=\"STR50\" minOccurs=\"0\" maxOccurs=\"1\" />"]
[null,null,null,"<!-- アグリゲーター用系統コード -->"]
[null,null,null,"<xsd:element name=\"JP06700\" type=\"CD06700\" />"]
[null,null,null,"<!-- アグリゲーター名称 -->"]
[null,null,null,"<xsd:element name=\"JP06701\" type=\"STR50\" minOccurs=\"0\" maxOccurs=\"1\" />"]
[null,null,null,"<!-- 対象期間開始年月日 -->"]
[null,null,null,"<xsd:element name=\"JP06171\" type=\"DT_YYYYMMDD\" />"]
[null,null,null,"<!-- 対象各リスト・パターン -->"]
[null,null,null,"<xsd:element name=\"JP06703\" type=\"CD06703\" />"]
[null,null,null,"<!--需要家リスト合計最大供出量-->"]
[null,null,null,"<xsd:element name=\"JP06706\" type=\"NI9\" />"]
[null,null,null,"<!--帳票作成支援ツール名-->"]
[null,null,null,"<xsd:element name=\"JP06613\" type=\"STR50\" minOccurs=\"0\" maxOccurs=\"1\" />"]
["          "]
[null,null,null,"<!--M10ループ-->"]
[null,null,null,"<xsd:element name=\"JPM00010\" type=\"TypeJPM00010\" minOccurs=\"0\" maxOccurs=\"1\"/>"]
[]
[null,null,null,"<!--M11ループ-->"]
[null,null,null,"<xsd:element name=\"JPM00011\" type=\"TypeJPM00011\" minOccurs=\"0\" maxOccurs=\"1\"/>"]
[]
[null,null,"</xsd:sequence>"]
[null,null,"<!--メッセージの属性（シーケンス番号） -->"]
[null,null,"<xsd:attribute name=\"SEQ\" type=\"NI5\" use=\"required\" />"]
[null,"</xsd:complexType>"]
[]
[null,"<!--M10ループ-->"]
[null,"<xsd:complexType name=\"TypeJPM00010\">"]
[null,null,"<xsd:sequence>"]
[null,null,null,"<xsd:element name=\"JPMR00010\" type=\"TypeJPMR00010\"  minOccurs=\"0\" maxOccurs=\"9999\" />"]
[null,null,"</xsd:sequence>"]
[null,"</xsd:complexType>"]
[]
[null,"<!--M10ループ中身 -->"]
[null,"<xsd:complexType name=\"TypeJPMR00010\">"]
[null,null,"<xsd:sequence>"]
[null,null,null,"<!--供給地点特定番号-->"]
[null,null,null,"<xsd:element name=\"JP06400\" type=\"STR22S\" />"]
[null,null,null,"<!--需要家名称-->"]
[null,null,null,"<xsd:element name=\"JP06120\" type=\"STR80\" />"]
[null,null,null,"<!--供給場所-->"]
[null,null,null,"<xsd:element name=\"JP06402\" type=\"STR70\" />"]
[null,null,null,"<!--契約電力-->"]
[null,null,null,"<xsd:element name=\"JP06707\" type=\"NI9\" />"]
[null,null,null,"<!--電圧区分-->"]
[null,null,null,"<xsd:element name=\"JP06403\" type=\"CD06403_31\" />"]
[null,null,null,"<!--供出方法-->"]
[null,null,null,"<xsd:element name=\"JP06708\" type=\"CD06708\" />"]
[null,null,null,"<!--小売電気事業者コード-->"]
[null,null,null,"<xsd:element name=\"JP06316\" type=\"STR5S\" />"]
[null,null,null,"<!--小売電気事業者名称-->"]
[null,null,null,"<xsd:element name=\"JP06317\" type=\"STR50\" minOccurs=\"0\" maxOccurs=\"1\" />"]
[null,null,null,"<!--需要抑制BGコード-->"]
[null,null,null,"<xsd:element name=\"JP06600\" type=\"STR5S\" minOccurs=\"0\" maxOccurs=\"1\"  />"]
[null,null,"</xsd:sequence>"]
[null,"</xsd:complexType>"]
[]
[null,"<!--M11ループ-->"]
[null,"<xsd:complexType name=\"TypeJPM00011\">"]
[null,null,"<xsd:sequence>"]
[null,null,null,"<xsd:element name=\"JPMR00011\" type=\"TypeJPMR00011\"  minOccurs=\"0\" maxOccurs=\"999\" />"]
[null,null,"</xsd:sequence>"]
[null,"</xsd:complexType>"]
[null,"<!--M11ループ中身 -->"]
[null,"<xsd:complexType name=\"TypeJPMR00011\">"]
[null,null,"<xsd:sequence>"]
[null,null,null,"<!--受電地点特定番号-->"]
[null,null,null,"<xsd:element name=\"JP06400\" type=\"STR22S\" />"]
[null,null,null,"<!--発電所名称-->"]
[null,null,null,"<xsd:element name=\"JP06310\" type=\"STR80\" />"]
[null,null,null,"<!--発電所場所-->"]
[null,null,null,"<xsd:element name=\"JP06402\" type=\"STR70\" />"]
[null,null,null,"<!--最大受電電力-->"]
[null,null,null,"<xsd:element name=\"JP06312\" type=\"NI9\" />"]
[null,null,null,"<!--電圧区分-->"]
[null,null,null,"<xsd:element name=\"JP06403\" type=\"CD06403_32\" />"]
[null,null,null,"<!--電源の種別-->"]
[null,null,null,"<xsd:element name=\"JP06710\" type=\"CD06710\" />"]
[null,null,null,"<!--発電方式-->"]
[null,null,null,"<xsd:element name=\"JP06711\" type=\"CD06711\" />"]
[null,null,null,"<!--火力燃料種別-->"]
[null,null,null,"<xsd:element name=\"JP06712\" type=\"CD06712\" />"]
[null,null,null,"<!--発電BGコード-->"]
[null,null,null,"<xsd:element name=\"JP06300\" type=\"STR5S\" />"]
[null,null,null,"<!--発電BG名称-->"]
[null,null,null,"<xsd:element name=\"JP06301\" type=\"STR50\" minOccurs=\"0\" maxOccurs=\"1\" />"]
[null,null,null,"<!--発電計画提出用系統コード-->"]
[null,null,null,"<xsd:element name=\"JP06186\" type=\"STR5S\" />"]
[null,null,"</xsd:sequence>"]
[null,"</xsd:complexType>"]
[]
[]
["<!-- JPC10:BPID機関コード(OCTO) -->"]
["<xsd:simpleType name=\"CdC10-OCTO\">"]
[null,"<xsd:restriction base=\"xsd:string\">"]
[null,null,null,"<xsd:enumeration value=\"OCTO\" />"]
[null,"</xsd:restriction>"]
["</xsd:simpleType>"]
[]
["<!-- JPC11:BPID副機関コード(W9) -->"]
["<xsd:simpleType name=\"CdC11-W9\">"]
[null,"<xsd:restriction base=\"xsd:string\">"]
[null,null,"<xsd:enumeration value=\"W9\" />"]
[null,"</xsd:restriction>"]
["</xsd:simpleType>"]
[]
["<!--JPC12:BPID版(3A) -->"]
["<xsd:simpleType name=\"CdC12-3A\">"]
[null,"<xsd:restriction base=\"xsd:string\">"]
[null,null,"<xsd:enumeration value=\"3A\" />"]
[null,"</xsd:restriction>"]
["</xsd:simpleType>"]
[]
["<!-- 情報区分コード -->"]
["<xsd:simpleType name=\"CdC14\">"]
[null,"<xsd:restriction base=\"xsd:string\">"]
[null,null,"<xsd:enumeration value=\"0231\" />"]
[null,"</xsd:restriction>"]
["</xsd:simpleType>"]
[]
["<!-- JPC21:構文規則識別版数 -->"]
["<xsd:simpleType name=\"CdC21\">"]
[null,"<xsd:restriction base=\"xsd:string\">"]
[null,null,"<xsd:enumeration value=\"1.0-1A\" />"]
[null,"</xsd:restriction>"]
["</xsd:simpleType>"]
[]
["<!-- JPC03:運用モード -->"]
["<xsd:simpleType name=\"CdC03\">"]
[null,"<xsd:restriction base=\"xsd:string\">"]
[null,null,"<xsd:enumeration value=\"\" />"]
[null,null,"<xsd:enumeration value=\"0\" />"]
[null,null,"<xsd:enumeration value=\"1\" />"]
[null,"</xsd:restriction>"]
["</xsd:simpleType>"]
[]
["<!-- JPC06:発信者コード -->"]
["<xsd:simpleType name=\"CdC06\">"]
[null,"<xsd:restriction base=\"xsd:string\">"]
[null,null,"<xsd:pattern value=\"\\w{5}[0]{7}\" />"]
[null,"</xsd:restriction>"]
["</xsd:simpleType>"]
[]
["<!-- JPC09:受信者コード -->"]
["<xsd:simpleType name=\"CdC09\">"]
[null,"<xsd:restriction base=\"xsd:string\">"]
[null,null,"<xsd:pattern value=\"\\w{5}[0]{7}\" />"]
[null,"</xsd:restriction>"]
["</xsd:simpleType>"]
[]
["<!-- アグリゲーター用系統コード -->"]
["<xsd:simpleType name=\"CD06700\">"]
[null,"<xsd:restriction base=\"xsd:string\">"]
[null,null,"<xsd:pattern value=\"[0-9]Y[&#x20;-&#x7e;]{3}\" />"]
[null,"</xsd:restriction>"]
["</xsd:simpleType>"]
[]
["<!--日付関連-->"]
["<xsd:simpleType name=\"DT_YYMMDDHHMMSS\">"]
[null,"<xsd:restriction base=\"xsd:string\">"]
[null,null,"<xsd:pattern value=\"\\d{12}\" />"]
[null,"</xsd:restriction>"]
["</xsd:simpleType>"]
[]
["<!-- 対象パターン番号 -->"]
["<xsd:simpleType name=\"CD06703\">"]
[null,"<xsd:restriction base=\"xsd:string\">"]
[null,null,"<xsd:enumeration value=\"01\" />","<!-- 対象パターン① -->"]
[null,null,"<xsd:enumeration value=\"02\" />","<!-- 対象パターン② -->"]
[null,null,"<xsd:enumeration value=\"03\" />","<!-- 対象パターン③ -->"]
[null,null,"<xsd:enumeration value=\"04\" />","<!-- 対象パターン④ -->"]
[null,null,"<xsd:enumeration value=\"05\" />","<!-- 対象パターン⑤ -->"]
[null,null,"<xsd:enumeration value=\"06\" />","<!-- 対象パターン⑥ -->"]
[null,null,"<xsd:enumeration value=\"07\" />","<!-- 対象パターン⑦ -->"]
[null,null,"<xsd:enumeration value=\"08\" />","<!-- 対象パターン⑧ -->"]
[null,null,"<xsd:enumeration value=\"09\" />","<!-- 対象パターン⑨ -->"]
[null,null,"<xsd:enumeration value=\"10\" />","<!-- 対象パターン⑩ -->"]
[null,null,"<xsd:enumeration value=\"11\" />","<!-- 対象パターン⑪ -->"]
[null,null,"<xsd:enumeration value=\"12\" />","<!-- 対象パターン⑫ -->"]
[null,null,"<xsd:enumeration value=\"13\" />","<!-- 対象パターン⑬ -->"]
[null,null,"<xsd:enumeration value=\"14\" />","<!-- 対象パターン⑭ -->"]
[null,null,"<xsd:enumeration value=\"15\" />","<!-- 対象パターン⑮ -->"]
[null,null,"<xsd:enumeration value=\"16\" />","<!-- 対象パターン⑯ -->"]
[null,null,"<xsd:enumeration value=\"17\" />","<!-- 対象パターン⑰ -->"]
[null,null,"<xsd:enumeration value=\"18\" />","<!-- 対象パターン⑱ -->"]
[null,null,"<xsd:enumeration value=\"19\" />","<!-- 対象パターン⑲ -->"]
[null,null,"<xsd:enumeration value=\"20\" />","<!-- 対象パターン⑳ -->"]
[null,"</xsd:restriction>"]
["</xsd:simpleType>"]
[]
["<xsd:simpleType name=\"CD06403_31\">"]
[null,"<xsd:restriction base=\"xsd:string\">"]
[null,null,"<xsd:enumeration value=\"低圧\" />"]
[null,null,"<xsd:enumeration value=\"高圧\" />"]
[null,null,"<xsd:enumeration value=\"特高\" />"]
[null,"</xsd:restriction>"]
["</xsd:simpleType>"]
[]
["<xsd:simpleType name=\"CD06403_32\">"]
[null,"<xsd:restriction base=\"xsd:string\">"]
[null,null,"<xsd:enumeration value=\"高圧\" />"]
[null,null,"<xsd:enumeration value=\"特高\" />"]
[null,"</xsd:restriction>"]
["</xsd:simpleType>"]
[]
["<xsd:simpleType name=\"CD06708\">"]
[null,"<xsd:restriction base=\"xsd:string\">"]
[null,null,"<xsd:enumeration value=\"1\" />","<!-- 1:需要抑制-->"]
[null,null,"<xsd:enumeration value=\"2\" />","<!-- 2:自家発等 -->"]
[null,"</xsd:restriction>"]
["</xsd:simpleType>"]
[]
["<xsd:simpleType name=\"CD06710\">"]
[null,"<xsd:restriction base=\"xsd:string\">"]
[null,null,"<xsd:enumeration value=\"1\" />","<!--1:火力-->"]
[null,null,"<xsd:enumeration value=\"2\" />","<!-- 2:水力 -->"]
[null,null,"<xsd:enumeration value=\"3\" />","<!--3:太陽光-->"]
[null,null,"<xsd:enumeration value=\"4\" />","<!-- 4:風力 -->"]
[null,null,"<xsd:enumeration value=\"5\" />","<!--5:地熱-->"]
[null,null,"<xsd:enumeration value=\"6\" />","<!-- 6:蓄電池 -->"]
[null,null,"<xsd:enumeration value=\"7\" />","<!--7:その他-->"]
[null,"</xsd:restriction>"]
["</xsd:simpleType>"]
[]
["<xsd:simpleType name=\"CD06711\">"]
[null,"<xsd:restriction base=\"xsd:string\">"]
[null,null,"<xsd:enumeration value=\"1\" />","<!-- 1:コンバインドサイクル -->"]
[null,null,"<xsd:enumeration value=\"2\" />","<!-- 2:汽力 -->"]
[null,null,"<xsd:enumeration value=\"3\" />","<!-- 3:ディーゼル -->"]
[null,null,"<xsd:enumeration value=\"4\" />","<!-- 4:水力 -->"]
[null,null,"<xsd:enumeration value=\"5\" />","<!-- 5:太陽光 -->"]
[null,null,"<xsd:enumeration value=\"6\" />","<!-- 6:風力 -->"]
[null,null,"<xsd:enumeration value=\"7\" />","<!-- 7:地熱 -->"]
[null,null,"<xsd:enumeration value=\"8\" />","<!-- 8:蓄電池 -->"]
[null,null,"<xsd:enumeration value=\"9\" />","<!-- 9:その他 -->"]
[null,"</xsd:restriction>"]
["</xsd:simpleType>"]
[]
["<xsd:simpleType name=\"CD06712\">"]
[null,"<xsd:restriction base=\"xsd:string\">"]
[null,null,"<xsd:enumeration value=\"01\" />","<!-- 01:原油 -->"]
[null,null,"<xsd:enumeration value=\"02\" />","<!-- 02:重油 -->"]
[null,null,"<xsd:enumeration value=\"03\" />","<!-- 03:軽油 -->"]
[null,null,"<xsd:enumeration value=\"04\" />","<!-- 04:LNG -->"]
[null,null,"<xsd:enumeration value=\"05\" />","<!-- 05:LPG -->"]
[null,null,"<xsd:enumeration value=\"06\" />","<!-- 06:NGL-->"]
[null,null,"<xsd:enumeration value=\"07\" />","<!-- 07:都市ガス -->"]
[null,null,"<xsd:enumeration value=\"08\" />","<!-- 08:灯油 -->"]
[null,null,"<xsd:enumeration value=\"09\" />","<!-- 09:石炭 -->"]
[null,null,"<xsd:enumeration value=\"10\" />","<!-- 10:木質ペレット -->"]
[null,null,"<xsd:enumeration value=\"11\" />","<!-- 11:その他 -->"]
[null,"</xsd:restriction>"]
["</xsd:simpleType>"]
[]
["<!--日付関連-->"]
["<xsd:simpleType name=\"DT_YYYYMMDD\">"]
[null,"<xsd:restriction base=\"xsd:string\">"]
[null,null,"<xsd:pattern value=\"\\d{8}\" />"]
[null,"</xsd:restriction>"]
["</xsd:simpleType>"]
[]
["<!--数値型-->"]
["<!--５桁-->"]
["<xsd:simpleType name=\"NI5\">"]
[null,"<xsd:restriction base=\"xsd:nonNegativeInteger\">"]
[null,null,"<xsd:totalDigits value=\"5\" />"]
[null,"</xsd:restriction>"]
["</xsd:simpleType>"]
[]
["<!--９桁-->"]
["<xsd:simpleType name=\"NI9\">"]
[null,"<xsd:restriction base=\"xsd:nonNegativeInteger\">"]
[null,null,"<xsd:totalDigits value=\"9\" />"]
[null,"</xsd:restriction>"]
["</xsd:simpleType>"]
[]
["<!--文字型-->"]
["<!--50文字-->"]
["<xsd:simpleType name=\"STR50\">"]
[null,"<xsd:restriction base=\"xsd:string\">"]
[null,null,"<xsd:minLength value=\"1\" />"]
[null,null,"<xsd:maxLength value=\"50\" />"]
[null,"</xsd:restriction>"]
["</xsd:simpleType>"]
[]
["<!--70文字-->"]
["<xsd:simpleType name=\"STR70\">"]
[null,"<xsd:restriction base=\"xsd:string\">"]
[null,null,"<xsd:minLength value=\"1\" />"]
[null,null,"<xsd:maxLength value=\"70\" />"]
[null,"</xsd:restriction>"]
["</xsd:simpleType>"]
[]
["<!--80文字-->"]
["<xsd:simpleType name=\"STR80\">"]
[null,"<xsd:restriction base=\"xsd:string\">"]
[null,null,"<xsd:minLength value=\"1\" />"]
[null,null,"<xsd:maxLength value=\"80\" />"]
[null,"</xsd:restriction>"]
["</xsd:simpleType>"]
[]
["<!--４文字・半角-->"]
["<xsd:simpleType name=\"STR4S\">"]
[null,"<xsd:restriction base=\"xsd:string\">"]
[null,null,"<xsd:pattern value=\"[&#x20;-&#x7e;]+\" />"]
[null,null,"<xsd:minLength value=\"1\" />"]
[null,null,"<xsd:maxLength value=\"4\" />"]
[null,"</xsd:restriction>"]
["</xsd:simpleType>"]
[]
["<!--５文字・半角-->"]
["<xsd:simpleType name=\"STR5S\">"]
[null,"<xsd:restriction base=\"xsd:string\">"]
[null,null,"<xsd:pattern value=\"[&#x20;-&#x7e;]+\" />"]
[null,null,"<xsd:minLength value=\"1\" />"]
[null,null,"<xsd:maxLength value=\"5\" />"]
[null,"</xsd:restriction>"]
["</xsd:simpleType>"]
[]
["<!--22文字・半角-->"]
["<xsd:simpleType name=\"STR22S\">"]
[null,"<xsd:restriction base=\"xsd:string\">"]
[null,null,"<xsd:pattern value=\"[&#x20;-&#x7e;]+\" />"]
[null,null,"<xsd:minLength value=\"1\" />"]
[null,null,"<xsd:maxLength value=\"22\" />"]
[null,"</xsd:restriction>"]
["</xsd:simpleType>"]
["</xsd:schema>"]

{"sheet":"XSD(0231)_旧","index":10,"n_rows":380,"n_cols":4,"rows_kept":380,"cut":false,"hidden":true,"merged":[]}
["<?xml version=\"1.0\" encoding=\"UTF-8\" ?>"]
["<xsd:schema xmlns:xsd=\"http://www.w3.org/2001/XMLSchema\" elementFormDefault=\"qualified\" attributeFormDefault=\"unqualified\">"]
[]
["<!--需要家リスト・パターン (0231) -->"]
["<!--需要家リスト 2021.04 rev 1.0 Release -->"]
[]
[]
["<!--メッセージグループヘッダ-->"]
[null,"<xsd:element name=\"MMS-MSG\" type=\"TypeMMS-MSG\" />"]
[null,"<xsd:complexType name=\"TypeMMS-MSG\">"]
[null,null,"<xsd:sequence>"]
[null,null,null,"<xsd:element name=\"JPMGRP\" type=\"TypeJPMGRP\" />"]
[null,null,"</xsd:sequence>"]
[null,null,"<!-- BPID機関コード -->"]
[null,null,"<xsd:attribute name=\"BPID\"    type=\"CdC10-OCTO\"   use=\"required\" />"]
[null,null,"<!-- BPID副機関コード -->"]
[null,null,"<xsd:attribute name=\"BPIDSUB\" type=\"CdC11-W9\"     use=\"required\" />"]
[null,null,"<!-- 各BP標準の版 -->"]
[null,null,"<xsd:attribute name=\"BPIDVER\" type=\"CdC12-3A\"   use=\"required\" />"]
[null,null,"<!-- 情報区分コード -->"]
[null,null,"<xsd:attribute name=\"MSGID\"   type=\"CdC14\"      use=\"required\" />"]
[null,null,"<!-- マッピング規則の版 -->"]
[null,null,"<xsd:attribute name=\"MAPVER\"  type=\"CdC21\"   use=\"required\" />"]
[null,"</xsd:complexType>"]
[]
[null,"<!--メッセージ定義-->"]
[null,"<xsd:complexType name=\"TypeJPMGRP\">"]
[null,null,"<xsd:sequence>"]
[null,null,null,"<!-- メッセージグループヘッダ -->"]
[null,null,null,"<xsd:element name=\"JPMGH\" type=\"TypeJPMGH\" />"]
[null,null,null,"<!-- 業務メッセージ -->"]
[null,null,null,"<xsd:element name=\"JPTRM\" type=\"TypeJPTRM\" />"]
[null,null,"</xsd:sequence>"]
[null,null,"<!-- メッセージグループの属性定義 -->"]
[null,null,"<!-- メッセージグループのシーケンス番号 -->"]
[null,null,"<xsd:attribute name=\"SEQ\" type=\"NI5\" use=\"required\" />    "]
[null,"</xsd:complexType>"]
[]
["<!--メッセージグループヘッダ -->"]
[null,"<xsd:complexType name=\"TypeJPMGH\">"]
[null,null,"<xsd:sequence>"]
[null,null,null,"<!-- 運用モード -->"]
[null,null,null,"<xsd:element name=\"JPC03\" type=\"CdC03\"/>  "]
[null,null,null,"<!-- 発信者コード --> "]
[null,null,null,"<xsd:element name=\"JPC06\" type=\"CdC06\"/>  "]
[null,null,null,"<!-- 受信者コード -->"]
[null,null,null,"<xsd:element name=\"JPC09\" type=\"CdC09\"/>   "]
[null,null,null,"<!-- BPID機関コード -->"]
[null,null,null,"<xsd:element name=\"JPC10\" type=\"CdC10-OCTO\" /> "]
[null,null,null,"<!-- BPID副機関コード -->"]
[null,null,null,"<xsd:element name=\"JPC11\" type=\"CdC11-W9\" />"]
[null,null,null,"<!-- BPIDVER -->"]
[null,null,null,"<xsd:element name=\"JPC12\" type=\"CdC12-3A\" />"]
[null,null,null,"<!-- 情報区分コード -->"]
[null,null,null,"<xsd:element name=\"JPC14\" type=\"CdC14\"/>"]
[null,null,null,"<!-- 作成日付時刻 -->"]
[null,null,null,"<xsd:element name=\"JPC19\" type=\"DT_YYMMDDHHMMSS\" />"]
[null,null,null,"<!-- 構文規則識別版数 -->"]
[null,null,null,"<xsd:element name=\"JPC21\" type=\"CdC21\"/>"]
[null,null,"</xsd:sequence>"]
[null,"</xsd:complexType>"]
[]
["<!--業務メッセージ -->"]
[null,"<xsd:complexType name=\"TypeJPTRM\">"]
[null,null,"<xsd:sequence>"]
[null,null,null,"<!-- 情報区分コード -->"]
[null,null,null,"<xsd:element name=\"JP00002\" type=\"STR4S\"/>"]
[null,null,null,"<!-- 情報区分名称 -->"]
[null,null,null,"<xsd:element name=\"JP06170\" type=\"STR50\" minOccurs=\"0\" maxOccurs=\"1\" />"]
[null,null,null,"<!-- 送信者コード -->"]
[null,null,null,"<xsd:element name=\"JP06110\" type=\"STR5S\" />"]
[null,null,null,"<!-- 送信者名称 -->"]
[null,null,null,"<xsd:element name=\"JP06111\" type=\"STR50\" minOccurs=\"0\" maxOccurs=\"1\" />"]
[null,null,null,"<!-- 提出先事業者コード -->"]
[null,null,null,"<xsd:element name=\"JP06358\" type=\"STR5S\" />"]
[null,null,null,"<!-- 提出先事業者名称 -->"]
[null,null,null,"<xsd:element name=\"JP06359\" type=\"STR50\" minOccurs=\"0\" maxOccurs=\"1\" />"]
[null,null,null,"<!-- アグリゲーター用系統コード -->"]
[null,null,null,"<xsd:element name=\"JP06700\" type=\"CD06700\" />"]
[null,null,null,"<!-- アグリゲーター名称 -->"]
[null,null,null,"<xsd:element name=\"JP06701\" type=\"STR50\" minOccurs=\"0\" maxOccurs=\"1\" />"]
[null,null,null,"<!-- 対象期間開始年月日 -->"]
[null,null,null,"<xsd:element name=\"JP06171\" type=\"DT_YYYYMMDD\" />"]
[null,null,null,"<!-- 対象需要家リスト・パターン -->"]
[null,null,null,"<xsd:element name=\"JP06703\" type=\"CD06703\" />"]
[null,null,null,"<!--需要家リスト合計最大供出量-->"]
[null,null,null,"<xsd:element name=\"JP06706\" type=\"NI9\" />"]
[null,null,null,"<!--帳票作成支援ツール名-->"]
[null,null,null,"<xsd:element name=\"JP06613\" type=\"STR50\" minOccurs=\"0\" maxOccurs=\"1\" />"]
["          "]
[null,null,null,"<!--M10ループ-->"]
[null,null,null,"<xsd:element name=\"JPM00010\" type=\"TypeJPM00010\" minOccurs=\"0\" maxOccurs=\"1\"/>"]
[]
[null,null,null,"<!--M11ループ-->"]
[null,null,null,"<xsd:element name=\"JPM00011\" type=\"TypeJPM00011\" minOccurs=\"0\" maxOccurs=\"1\"/>"]
[]
[null,null,"</xsd:sequence>"]
[null,null,"<!--メッセージの属性（シーケンス番号） -->"]
[null,null,"<xsd:attribute name=\"SEQ\" type=\"NI5\" use=\"required\" />"]
[null,"</xsd:complexType>"]
[]
[null,"<!--M10ループ-->"]
[null,"<xsd:complexType name=\"TypeJPM00010\">"]
[null,null,"<xsd:sequence>"]
[null,null,null,"<xsd:element name=\"JPMR00010\" type=\"TypeJPMR00010\"  minOccurs=\"0\" maxOccurs=\"9999\" />"]
[null,null,"</xsd:sequence>"]
[null,"</xsd:complexType>"]
[]
[null,"<!--M10ループ中身 -->"]
[null,"<xsd:complexType name=\"TypeJPMR00010\">"]
[null,null,"<xsd:sequence>"]
[null,null,null,"<!--供給地点特定番号-->"]
[null,null,null,"<xsd:element name=\"JP06400\" type=\"STR22S\" />"]
[null,null,null,"<!--需要家名称-->"]
[null,null,null,"<xsd:element name=\"JP06120\" type=\"STR50\" />"]
[null,null,null,"<!--供給場所-->"]
[null,null,null,"<xsd:element name=\"JP06402\" type=\"STR50\" />"]
[null,null,null,"<!--契約電力-->"]
[null,null,null,"<xsd:element name=\"JP06707\" type=\"NI9\" />"]
[null,null,null,"<!--電圧区分-->"]
[null,null,null,"<xsd:element name=\"JP06403\" type=\"CD06403\" />"]
[null,null,null,"<!--供出方法-->"]
[null,null,null,"<xsd:element name=\"JP06708\" type=\"CD06708\" />"]
[null,null,null,"<!--小売電気事業者コード-->"]
[null,null,null,"<xsd:element name=\"JP06316\" type=\"STR5S\" />"]
[null,null,null,"<!--小売電気事業者名称-->"]
[null,null,null,"<xsd:element name=\"JP06317\" type=\"STR50\" minOccurs=\"0\" maxOccurs=\"1\" />"]
[null,null,null,"<!--需要抑制BGコード-->"]
[null,null,null,"<xsd:element name=\"JP06600\" type=\"STR5S\" minOccurs=\"0\" maxOccurs=\"1\"  />"]
[null,null,"</xsd:sequence>"]
[null,"</xsd:complexType>"]
[]
[null,"<!--M11ループ-->"]
[null,"<xsd:complexType name=\"TypeJPM00011\">"]
[null,null,"<xsd:sequence>"]
[null,null,null,"<xsd:element name=\"JPMR00011\" type=\"TypeJPMR00011\"  minOccurs=\"0\" maxOccurs=\"999\" />"]
[null,null,"</xsd:sequence>"]
[null,"</xsd:complexType>"]
[null,"<!--M11ループ中身 -->"]
[null,"<xsd:complexType name=\"TypeJPMR00011\">"]
[null,null,"<xsd:sequence>"]
[null,null,null,"<!--受電地点特定番号-->"]
[null,null,null,"<xsd:element name=\"JP06709\" type=\"STR22S\" />"]
[null,null,null,"<!--発電所名称-->"]
[null,null,null,"<xsd:element name=\"JP06310\" type=\"STR50\" />"]
[null,null,null,"<!--発電所場所-->"]
[null,null,null,"<xsd:element name=\"JP06402\" type=\"STR50\" />"]
[null,null,null,"<!--最大受電電力-->"]
[null,null,null,"<xsd:element name=\"JP06312\" type=\"NI9\" />"]
[null,null,null,"<!--電圧区分-->"]
[null,null,null,"<xsd:element name=\"JP06403\" type=\"CD06403\" />"]
[null,null,null,"<!--電源の種別-->"]
[null,null,null,"<xsd:element name=\"JP06710\" type=\"CD06710\" />"]
[null,null,null,"<!--発電方式-->"]
[null,null,null,"<xsd:element name=\"JP06711\" type=\"CD06711\" />"]
[null,null,null,"<!--火力燃料種別-->"]
[null,null,null,"<xsd:element name=\"JP06712\" type=\"CD06712\" />"]
[null,null,null,"<!--発電BGコード-->"]
[null,null,null,"<xsd:element name=\"JP06300\" type=\"STR5S\" />"]
[null,null,null,"<!--発電BG名称-->"]
[null,null,null,"<xsd:element name=\"JP06301\" type=\"STR50\" minOccurs=\"0\" maxOccurs=\"1\" />"]
[null,null,null,"<!--発電計画提出用系統コード-->"]
[null,null,null,"<xsd:element name=\"JP06186\" type=\"STR5S\" />"]
[null,null,"</xsd:sequence>"]
[null,"</xsd:complexType>"]
[]
[]
["<!-- JPC10:BPID機関コード(OCTO) -->"]
["<xsd:simpleType name=\"CdC10-OCTO\">"]
[null,"<xsd:restriction base=\"xsd:string\">"]
[null,null,null,"<xsd:enumeration value=\"OCTO\" />"]
[null,"</xsd:restriction>"]
["</xsd:simpleType>"]
[]
["<!-- JPC11:BPID副機関コード(W9) -->"]
["<xsd:simpleType name=\"CdC11-W9\">"]
[null,"<xsd:restriction base=\"xsd:string\">"]
[null,null,"<xsd:enumeration value=\"W9\" />"]
[null,"</xsd:restriction>"]
["</xsd:simpleType>"]
[]
["<!--JPC12:BPID版(3A) -->"]
["<xsd:simpleType name=\"CdC12-3A\">"]
[null,"<xsd:restriction base=\"xsd:string\">"]
[null,null,"<xsd:enumeration value=\"3A\" />"]
[null,"</xsd:restriction>"]
["</xsd:simpleType>"]
[]
["<!-- 情報区分コード -->"]
["<xsd:simpleType name=\"CdC14\">"]
[null,"<xsd:restriction base=\"xsd:string\">"]
[null,null,"<xsd:enumeration value=\"0231\" />"]
[null,"</xsd:restriction>"]
["</xsd:simpleType>"]
[]
["<!-- JPC21:構文規則識別版数 -->"]
["<xsd:simpleType name=\"CdC21\">"]
[null,"<xsd:restriction base=\"xsd:string\">"]
[null,null,"<xsd:enumeration value=\"1.0-1A\" />"]
[null,"</xsd:restriction>"]
["</xsd:simpleType>"]
[]
["<!-- JPC03:運用モード -->"]
["<xsd:simpleType name=\"CdC03\">"]
[null,"<xsd:restriction base=\"xsd:string\">"]
[null,null,"<xsd:enumeration value=\"\" />"]
[null,null,"<xsd:enumeration value=\"0\" />"]
[null,null,"<xsd:enumeration value=\"1\" />"]
[null,"</xsd:restriction>"]
["</xsd:simpleType>"]
[]
["<!-- JPC06:発信者コード -->"]
["<xsd:simpleType name=\"CdC06\">"]
[null,"<xsd:restriction base=\"xsd:string\">"]
[null,null,"<xsd:pattern value=\"\\w{5}[0]{7}\" />"]
[null,"</xsd:restriction>"]
["</xsd:simpleType>"]
[]
["<!-- JPC09:受信者コード -->"]
["<xsd:simpleType name=\"CdC09\">"]
[null,"<xsd:restriction base=\"xsd:string\">"]
[null,null,"<xsd:pattern value=\"\\w{5}[0]{7}\" />"]
[null,"</xsd:restriction>"]
["</xsd:simpleType>"]
[]
["<!-- アグリゲーター用系統コード -->"]
["<xsd:simpleType name=\"CD06700\">"]
[null,"<xsd:restriction base=\"xsd:string\">"]
[null,null,"<xsd:pattern value=\"[0-9]Y[&#x20;-&#x7e;]{3}\" />"]
[null,"</xsd:restriction>"]
["</xsd:simpleType>"]
[]
["<!--日付関連-->"]
["<xsd:simpleType name=\"DT_YYMMDDHHMMSS\">"]
[null,"<xsd:restriction base=\"xsd:string\">"]
[null,null,"<xsd:pattern value=\"\\d{12}\" />"]
[null,"</xsd:restriction>"]
["</xsd:simpleType>"]
[]
["<!-- 対象パターン番号 -->"]
["<xsd:simpleType name=\"CD06703\">"]
[null,"<xsd:restriction base=\"xsd:string\">"]
[null,null,"<xsd:enumeration value=\"01\" />","<!-- 対象パターン① -->"]
[null,null,"<xsd:enumeration value=\"02\" />","<!-- 対象パターン② -->"]
[null,null,"<xsd:enumeration value=\"03\" />","<!-- 対象パターン③ -->"]
[null,null,"<xsd:enumeration value=\"04\" />","<!-- 対象パターン④ -->"]
[null,null,"<xsd:enumeration value=\"05\" />","<!-- 対象パターン⑤ -->"]
[null,null,"<xsd:enumeration value=\"06\" />","<!-- 対象パターン⑥ -->"]
[null,null,"<xsd:enumeration value=\"07\" />","<!-- 対象パターン⑦ -->"]
[null,null,"<xsd:enumeration value=\"08\" />","<!-- 対象パターン⑧ -->"]
[null,null,"<xsd:enumeration value=\"09\" />","<!-- 対象パターン⑨ -->"]
[null,null,"<xsd:enumeration value=\"10\" />","<!-- 対象パターン⑩ -->"]
[null,null,"<xsd:enumeration value=\"11\" />","<!-- 対象パターン⑪ -->"]
[null,null,"<xsd:enumeration value=\"12\" />","<!-- 対象パターン⑫ -->"]
[null,null,"<xsd:enumeration value=\"13\" />","<!-- 対象パターン⑬ -->"]
[null,null,"<xsd:enumeration value=\"14\" />","<!-- 対象パターン⑭ -->"]
[null,null,"<xsd:enumeration value=\"15\" />","<!-- 対象パターン⑮ -->"]
[null,null,"<xsd:enumeration value=\"16\" />","<!-- 対象パターン⑯ -->"]
[null,null,"<xsd:enumeration value=\"17\" />","<!-- 対象パターン⑰ -->"]
[null,null,"<xsd:enumeration value=\"18\" />","<!-- 対象パターン⑱ -->"]
[null,null,"<xsd:enumeration value=\"19\" />","<!-- 対象パターン⑲ -->"]
[null,null,"<xsd:enumeration value=\"20\" />","<!-- 対象パターン⑳ -->"]
[null,"</xsd:restriction>"]
["</xsd:simpleType>"]
[]
["<xsd:simpleType name=\"CD06403\">"]
[null,"<xsd:restriction base=\"xsd:string\">"]
[null,null,"<xsd:enumeration value=\"低圧\" />"]
[null,null,"<xsd:enumeration value=\"高圧\" />"]
[null,null,"<xsd:enumeration value=\"特高\" />"]
[null,"</xsd:restriction>"]
["</xsd:simpleType>"]
[]
["<xsd:simpleType name=\"CD06708\">"]
[null,"<xsd:restriction base=\"xsd:string\">"]
[null,null,"<xsd:enumeration value=\"1\" />","<!-- 1:需要抑制-->"]
[null,null,"<xsd:enumeration value=\"2\" />","<!-- 2:自家発等 -->"]
[null,"</xsd:restriction>"]
["</xsd:simpleType>"]
[]
["<xsd:simpleType name=\"CD06710\">"]
[null,"<xsd:restriction base=\"xsd:string\">"]
[null,null,"<xsd:enumeration value=\"1\" />","<!--1:火力-->"]
[null,null,"<xsd:enumeration value=\"2\" />","<!-- 2:水力 -->"]
[null,null,"<xsd:enumeration value=\"3\" />","<!--3:太陽光-->"]
[null,null,"<xsd:enumeration value=\"4\" />","<!-- 4:風力 -->"]
[null,null,"<xsd:enumeration value=\"5\" />","<!--5:地熱-->"]
[null,null,"<xsd:enumeration value=\"6\" />","<!-- 6:蓄電池 -->"]
[null,null,"<xsd:enumeration value=\"7\" />","<!--7:その他-->"]
[null,"</xsd:restriction>"]
["</xsd:simpleType>"]
[]
["<xsd:simpleType name=\"CD06711\">"]
[null,"<xsd:restriction base=\"xsd:string\">"]
[null,null,"<xsd:enumeration value=\"1\" />","<!-- 1:コンバインドサイクル -->"]
[null,null,"<xsd:enumeration value=\"2\" />","<!-- 2:汽力 -->"]
[null,null,"<xsd:enumeration value=\"3\" />","<!-- 3:ディーゼル -->"]
[null,null,"<xsd:enumeration value=\"4\" />","<!-- 4:水力 -->"]
[null,null,"<xsd:enumeration value=\"5\" />","<!-- 5:太陽光 -->"]
[null,null,"<xsd:enumeration value=\"6\" />","<!-- 6:風力 -->"]
[null,null,"<xsd:enumeration value=\"7\" />","<!-- 7:蓄電池 -->"]
[null,null,"<xsd:enumeration value=\"8\" />","<!-- 8:その他 -->"]
[null,"</xsd:restriction>"]
["</xsd:simpleType>"]
[]
["<xsd:simpleType name=\"CD06712\">"]
[null,"<xsd:restriction base=\"xsd:string\">"]
[null,null,"<xsd:enumeration value=\"01\" />","<!-- 01:原油 -->"]
[null,null,"<xsd:enumeration value=\"02\" />","<!-- 02:重油 -->"]
[null,null,"<xsd:enumeration value=\"03\" />","<!-- 03:軽油 -->"]
[null,null,"<xsd:enumeration value=\"04\" />","<!-- 04:LNG -->"]
[null,null,"<xsd:enumeration value=\"05\" />","<!-- 05:LPG -->"]
[null,null,"<xsd:enumeration value=\"06\" />","<!-- 06:NGL-->"]
[null,null,"<xsd:enumeration value=\"07\" />","<!-- 07:都市ガス -->"]
[null,null,"<xsd:enumeration value=\"08\" />","<!-- 08:灯油 -->"]
[null,null,"<xsd:enumeration value=\"09\" />","<!-- 09:石炭 -->"]
[null,null,"<xsd:enumeration value=\"10\" />","<!-- 10:木質ペレット -->"]
[null,null,"<xsd:enumeration value=\"11\" />","<!-- 11:その他 -->"]
[null,"</xsd:restriction>"]
["</xsd:simpleType>"]
[]
["<!--日付関連-->"]
["<xsd:simpleType name=\"DT_YYYYMMDD\">"]
[null,"<xsd:restriction base=\"xsd:string\">"]
[null,null,"<xsd:pattern value=\"\\d{8}\" />"]
[null,"</xsd:restriction>"]
["</xsd:simpleType>"]
[]
["<!--数値型-->"]
["<!--５桁-->"]
["<xsd:simpleType name=\"NI5\">"]
[null,"<xsd:restriction base=\"xsd:nonNegativeInteger\">"]
[null,null,"<xsd:totalDigits value=\"5\" />"]
[null,"</xsd:restriction>"]
["</xsd:simpleType>"]
[]
["<!--９桁-->"]
["<xsd:simpleType name=\"NI9\">"]
[null,"<xsd:restriction base=\"xsd:nonNegativeInteger\">"]
[null,null,"<xsd:totalDigits value=\"9\" />"]
[null,"</xsd:restriction>"]
["</xsd:simpleType>"]
[]
["<!--文字型-->"]
["<!--50文字-->"]
["<xsd:simpleType name=\"STR50\">"]
[null,"<xsd:restriction base=\"xsd:string\">"]
[null,null,"<xsd:minLength value=\"1\" />"]
[null,null,"<xsd:maxLength value=\"50\" />"]
[null,"</xsd:restriction>"]
["</xsd:simpleType>"]
[]
["<!--４文字・半角-->"]
["<xsd:simpleType name=\"STR4S\">"]
[null,"<xsd:restriction base=\"xsd:string\">"]
[null,null,"<xsd:pattern value=\"[&#x20;-&#x7e;]+\" />"]
[null,null,"<xsd:minLength value=\"1\" />"]
[null,null,"<xsd:maxLength value=\"4\" />"]
[null,"</xsd:restriction>"]
["</xsd:simpleType>"]
[]
["<!--５文字・半角-->"]
["<xsd:simpleType name=\"STR5S\">"]
[null,"<xsd:restriction base=\"xsd:string\">"]
[null,null,"<xsd:pattern value=\"[&#x20;-&#x7e;]+\" />"]
[null,null,"<xsd:minLength value=\"1\" />"]
[null,null,"<xsd:maxLength value=\"5\" />"]
[null,"</xsd:restriction>"]
["</xsd:simpleType>"]
[]
["<!--22文字・半角-->"]
["<xsd:simpleType name=\"STR22S\">"]
[null,"<xsd:restriction base=\"xsd:string\">"]
[null,null,"<xsd:pattern value=\"[&#x20;-&#x7e;]+\" />"]
[null,null,"<xsd:minLength value=\"1\" />"]
[null,null,"<xsd:maxLength value=\"22\" />"]
[null,"</xsd:restriction>"]
["</xsd:simpleType>"]
[]
["</xsd:schema>"]

{"sheet":"XSD(0232)","index":11,"n_rows":403,"n_cols":4,"rows_kept":403,"cut":false,"hidden":true,"merged":[]}
["<?xml version=\"1.0\" encoding=\"UTF-8\" ?>"]
["<xsd:schema xmlns:xsd=\"http://www.w3.org/2001/XMLSchema\" elementFormDefault=\"qualified\" attributeFormDefault=\"unqualified\">"]
[]
["<!--各リスト・パターン (0232) -->"]
["<!--各リスト 2022.02 rev 1.0 Release -->"]
[]
[]
["<!--メッセージグループヘッダ-->"]
[null,"<xsd:element name=\"MMS-MSG\" type=\"TypeMMS-MSG\" />"]
[null,"<xsd:complexType name=\"TypeMMS-MSG\">"]
[null,null,"<xsd:sequence>"]
[null,null,null,"<xsd:element name=\"JPMGRP\" type=\"TypeJPMGRP\" />"]
[null,null,"</xsd:sequence>"]
[null,null,"<!-- BPID機関コード -->"]
[null,null,"<xsd:attribute name=\"BPID\"    type=\"CdC10-OCTO\"   use=\"required\" />"]
[null,null,"<!-- BPID副機関コード -->"]
[null,null,"<xsd:attribute name=\"BPIDSUB\" type=\"CdC11-W9\"     use=\"required\" />"]
[null,null,"<!-- 各BP標準の版 -->"]
[null,null,"<xsd:attribute name=\"BPIDVER\" type=\"CdC12-3A\"   use=\"required\" />"]
[null,null,"<!-- 情報区分コード -->"]
[null,null,"<xsd:attribute name=\"MSGID\"   type=\"CdC14\"      use=\"required\" />"]
[null,null,"<!-- マッピング規則の版 -->"]
[null,null,"<xsd:attribute name=\"MAPVER\"  type=\"CdC21\"   use=\"required\" />"]
[null,"</xsd:complexType>"]
[]
[null,"<!--メッセージ定義-->"]
[null,"<xsd:complexType name=\"TypeJPMGRP\">"]
[null,null,"<xsd:sequence>"]
[null,null,null,"<!-- メッセージグループヘッダ -->"]
[null,null,null,"<xsd:element name=\"JPMGH\" type=\"TypeJPMGH\" />"]
[null,null,null,"<!-- 業務メッセージ -->"]
[null,null,null,"<xsd:element name=\"JPTRM\" type=\"TypeJPTRM\" />"]
[null,null,"</xsd:sequence>"]
[null,null,"<!-- メッセージグループの属性定義 -->"]
[null,null,"<!-- メッセージグループのシーケンス番号 -->"]
[null,null,"<xsd:attribute name=\"SEQ\" type=\"NI5\" use=\"required\" />    "]
[null,"</xsd:complexType>"]
[]
["<!--メッセージグループヘッダ -->"]
[null,"<xsd:complexType name=\"TypeJPMGH\">"]
[null,null,"<xsd:sequence>"]
[null,null,null,"<!-- 運用モード -->"]
[null,null,null,"<xsd:element name=\"JPC03\" type=\"CdC03\"/>  "]
[null,null,null,"<!-- 発信者コード --> "]
[null,null,null,"<xsd:element name=\"JPC06\" type=\"CdC06\"/>  "]
[null,null,null,"<!-- 受信者コード -->"]
[null,null,null,"<xsd:element name=\"JPC09\" type=\"CdC09\"/>   "]
[null,null,null,"<!-- BPID機関コード -->"]
[null,null,null,"<xsd:element name=\"JPC10\" type=\"CdC10-OCTO\" /> "]
[null,null,null,"<!-- BPID副機関コード -->"]
[null,null,null,"<xsd:element name=\"JPC11\" type=\"CdC11-W9\" />"]
[null,null,null,"<!-- BPIDVER -->"]
[null,null,null,"<xsd:element name=\"JPC12\" type=\"CdC12-3A\" />"]
[null,null,null,"<!-- 情報区分コード -->"]
[null,null,null,"<xsd:element name=\"JPC14\" type=\"CdC14\"/>"]
[null,null,null,"<!-- 作成日付時刻 -->"]
[null,null,null,"<xsd:element name=\"JPC19\" type=\"DT_YYMMDDHHMMSS\" />"]
[null,null,null,"<!-- 構文規則識別版数 -->"]
[null,null,null,"<xsd:element name=\"JPC21\" type=\"CdC21\"/>"]
[null,null,"</xsd:sequence>"]
[null,"</xsd:complexType>"]
[]
["<!--業務メッセージ -->"]
[null,"<xsd:complexType name=\"TypeJPTRM\">"]
[null,null,"<xsd:sequence>"]
[null,null,null,"<!-- 情報区分コード -->"]
[null,null,null,"<xsd:element name=\"JP00002\" type=\"STR4S\"/>"]
[null,null,null,"<!-- 情報区分名称 -->"]
[null,null,null,"<xsd:element name=\"JP06170\" type=\"STR50\" minOccurs=\"0\" maxOccurs=\"1\" />"]
[null,null,null,"<!-- 送信者コード -->"]
[null,null,null,"<xsd:element name=\"JP06110\" type=\"STR5S\" />"]
[null,null,null,"<!-- 送信者名称 -->"]
[null,null,null,"<xsd:element name=\"JP06111\" type=\"STR50\" minOccurs=\"0\" maxOccurs=\"1\" />"]
[null,null,null,"<!-- 提出先事業者コード -->"]
[null,null,null,"<xsd:element name=\"JP06358\" type=\"STR5S\" />"]
[null,null,null,"<!-- 提出先事業者名称 -->"]
[null,null,null,"<xsd:element name=\"JP06359\" type=\"STR50\" minOccurs=\"0\" maxOccurs=\"1\" />"]
[null,null,null,"<!-- アグリゲーター用系統コード -->"]
[null,null,null,"<xsd:element name=\"JP06700\" type=\"CD06700\" />"]
[null,null,null,"<!-- アグリゲーター名称 -->"]
[null,null,null,"<xsd:element name=\"JP06701\" type=\"STR50\" minOccurs=\"0\" maxOccurs=\"1\" />"]
[null,null,null,"<!-- 対象期間開始年月日 -->"]
[null,null,null,"<xsd:element name=\"JP06171\" type=\"DT_YYYYMMDD\" />"]
[null,null,null,"<!-- 対象各リスト・パターン -->"]
[null,null,null,"<xsd:element name=\"JP06703\" type=\"CD06703\" />"]
[null,null,null,"<!--需要家リスト合計最大供出量-->"]
[null,null,null,"<xsd:element name=\"JP06706\" type=\"NI9\" />"]
[null,null,null,"<!--帳票作成支援ツール名-->"]
[null,null,null,"<xsd:element name=\"JP06613\" type=\"STR50\" minOccurs=\"0\" maxOccurs=\"1\" />"]
["          "]
[null,null,null,"<!--M10ループ-->"]
[null,null,null,"<xsd:element name=\"JPM00010\" type=\"TypeJPM00010\" minOccurs=\"0\" maxOccurs=\"1\"/>"]
[]
[null,null,null,"<!--M11ループ-->"]
[null,null,null,"<xsd:element name=\"JPM00011\" type=\"TypeJPM00011\" minOccurs=\"0\" maxOccurs=\"1\"/>"]
[]
[null,null,"</xsd:sequence>"]
[null,null,"<!--メッセージの属性（シーケンス番号） -->"]
[null,null,"<xsd:attribute name=\"SEQ\" type=\"NI5\" use=\"required\" />"]
[null,"</xsd:complexType>"]
[]
[null,"<!--M10ループ-->"]
[null,"<xsd:complexType name=\"TypeJPM00010\">"]
[null,null,"<xsd:sequence>"]
[null,null,null,"<xsd:element name=\"JPMR00010\" type=\"TypeJPMR00010\"  minOccurs=\"0\" maxOccurs=\"9999\" />"]
[null,null,"</xsd:sequence>"]
[null,"</xsd:complexType>"]
[]
[null,"<!--M10ループ中身 -->"]
[null,"<xsd:complexType name=\"TypeJPMR00010\">"]
[null,null,"<xsd:sequence>"]
[null,null,null,"<!--供給地点特定番号-->"]
[null,null,null,"<xsd:element name=\"JP06400\" type=\"STR22S\" />"]
[null,null,null,"<!--需要家名称-->"]
[null,null,null,"<xsd:element name=\"JP06120\" type=\"STR80\" />"]
[null,null,null,"<!--供給場所-->"]
[null,null,null,"<xsd:element name=\"JP06402\" type=\"STR70\" />"]
[null,null,null,"<!--契約電力-->"]
[null,null,null,"<xsd:element name=\"JP06707\" type=\"NI9\" />"]
[null,null,null,"<!--電圧区分-->"]
[null,null,null,"<xsd:element name=\"JP06403\" type=\"CD06403_31\" />"]
[null,null,null,"<!--供出方法-->"]
[null,null,null,"<xsd:element name=\"JP06708\" type=\"CD06708\" />"]
[null,null,null,"<!--小売電気事業者コード-->"]
[null,null,null,"<xsd:element name=\"JP06316\" type=\"STR5S\" />"]
[null,null,null,"<!--小売電気事業者名称-->"]
[null,null,null,"<xsd:element name=\"JP06317\" type=\"STR50\" minOccurs=\"0\" maxOccurs=\"1\" />"]
[null,null,null,"<!--需要抑制BGコード-->"]
[null,null,null,"<xsd:element name=\"JP06600\" type=\"STR5S\" minOccurs=\"0\" maxOccurs=\"1\"  />"]
[null,null,"</xsd:sequence>"]
[null,"</xsd:complexType>"]
[]
[null,"<!--M11ループ-->"]
[null,"<xsd:complexType name=\"TypeJPM00011\">"]
[null,null,"<xsd:sequence>"]
[null,null,null,"<xsd:element name=\"JPMR00011\" type=\"TypeJPMR00011\"  minOccurs=\"0\" maxOccurs=\"999\" />"]
[null,null,"</xsd:sequence>"]
[null,"</xsd:complexType>"]
[null,"<!--M11ループ中身 -->"]
[null,"<xsd:complexType name=\"TypeJPMR00011\">"]
[null,null,"<xsd:sequence>"]
[null,null,null,"<!--受電地点特定番号-->"]
[null,null,null,"<xsd:element name=\"JP06400\" type=\"STR22S\" />"]
[null,null,null,"<!--発電所名称-->"]
[null,null,null,"<xsd:element name=\"JP06310\" type=\"STR80\" />"]
[null,null,null,"<!--発電所場所-->"]
[null,null,null,"<xsd:element name=\"JP06402\" type=\"STR70\" />"]
[null,null,null,"<!--最大受電電力-->"]
[null,null,null,"<xsd:element name=\"JP06312\" type=\"NI9\" />"]
[null,null,null,"<!--電圧区分-->"]
[null,null,null,"<xsd:element name=\"JP06403\" type=\"CD06403_32\" />"]
[null,null,null,"<!--電源の種別-->"]
[null,null,null,"<xsd:element name=\"JP06710\" type=\"CD06710\" />"]
[null,null,null,"<!--発電方式-->"]
[null,null,null,"<xsd:element name=\"JP06711\" type=\"CD06711\" />"]
[null,null,null,"<!--火力燃料種別-->"]
[null,null,null,"<xsd:element name=\"JP06712\" type=\"CD06712\" />"]
[null,null,null,"<!--発電BGコード-->"]
[null,null,null,"<xsd:element name=\"JP06300\" type=\"STR5S\" />"]
[null,null,null,"<!--発電BG名称-->"]
[null,null,null,"<xsd:element name=\"JP06301\" type=\"STR50\" minOccurs=\"0\" maxOccurs=\"1\" />"]
[null,null,null,"<!--発電計画提出用系統コード-->"]
[null,null,null,"<xsd:element name=\"JP06186\" type=\"STR5S\" />"]
[null,null,"</xsd:sequence>"]
[null,"</xsd:complexType>"]
[]
[]
["<!-- JPC10:BPID機関コード(OCTO) -->"]
["<xsd:simpleType name=\"CdC10-OCTO\">"]
[null,"<xsd:restriction base=\"xsd:string\">"]
[null,null,null,"<xsd:enumeration value=\"OCTO\" />"]
[null,"</xsd:restriction>"]
["</xsd:simpleType>"]
[]
["<!-- JPC11:BPID副機関コード(W9) -->"]
["<xsd:simpleType name=\"CdC11-W9\">"]
[null,"<xsd:restriction base=\"xsd:string\">"]
[null,null,"<xsd:enumeration value=\"W9\" />"]
[null,"</xsd:restriction>"]
["</xsd:simpleType>"]
[]
["<!--JPC12:BPID版(3A) -->"]
["<xsd:simpleType name=\"CdC12-3A\">"]
[null,"<xsd:restriction base=\"xsd:string\">"]
[null,null,"<xsd:enumeration value=\"3A\" />"]
[null,"</xsd:restriction>"]
["</xsd:simpleType>"]
[]
["<!-- 情報区分コード -->"]
["<xsd:simpleType name=\"CdC14\">"]
[null,"<xsd:restriction base=\"xsd:string\">"]
[null,null,"<xsd:enumeration value=\"0232\" />"]
[null,"</xsd:restriction>"]
["</xsd:simpleType>"]
[]
["<!-- JPC21:構文規則識別版数 -->"]
["<xsd:simpleType name=\"CdC21\">"]
[null,"<xsd:restriction base=\"xsd:string\">"]
[null,null,"<xsd:enumeration value=\"1.0-1A\" />"]
[null,"</xsd:restriction>"]
["</xsd:simpleType>"]
[]
["<!-- JPC03:運用モード -->"]
["<xsd:simpleType name=\"CdC03\">"]
[null,"<xsd:restriction base=\"xsd:string\">"]
[null,null,"<xsd:enumeration value=\"\" />"]
[null,null,"<xsd:enumeration value=\"0\" />"]
[null,null,"<xsd:enumeration value=\"1\" />"]
[null,"</xsd:restriction>"]
["</xsd:simpleType>"]
[]
["<!-- JPC06:発信者コード -->"]
["<xsd:simpleType name=\"CdC06\">"]
[null,"<xsd:restriction base=\"xsd:string\">"]
[null,null,"<xsd:pattern value=\"\\w{5}[0]{7}\" />"]
[null,"</xsd:restriction>"]
["</xsd:simpleType>"]
[]
["<!-- JPC09:受信者コード -->"]
["<xsd:simpleType name=\"CdC09\">"]
[null,"<xsd:restriction base=\"xsd:string\">"]
[null,null,"<xsd:pattern value=\"\\w{5}[0]{7}\" />"]
[null,"</xsd:restriction>"]
["</xsd:simpleType>"]
[]
["<!-- アグリゲーター用系統コード -->"]
["<xsd:simpleType name=\"CD06700\">"]
[null,"<xsd:restriction base=\"xsd:string\">"]
[null,null,"<xsd:pattern value=\"[0-9]Y[&#x20;-&#x7e;]{3}\" />"]
[null,"</xsd:restriction>"]
["</xsd:simpleType>"]
[]
["<!--日付関連-->"]
["<xsd:simpleType name=\"DT_YYMMDDHHMMSS\">"]
[null,"<xsd:restriction base=\"xsd:string\">"]
[null,null,"<xsd:pattern value=\"\\d{12}\" />"]
[null,"</xsd:restriction>"]
["</xsd:simpleType>"]
[]
["<!-- 対象パターン番号 -->"]
["<xsd:simpleType name=\"CD06703\">"]
[null,"<xsd:restriction base=\"xsd:string\">"]
[null,null,"<xsd:enumeration value=\"01\" />","<!-- 対象パターン① -->"]
[null,null,"<xsd:enumeration value=\"02\" />","<!-- 対象パターン② -->"]
[null,null,"<xsd:enumeration value=\"03\" />","<!-- 対象パターン③ -->"]
[null,null,"<xsd:enumeration value=\"04\" />","<!-- 対象パターン④ -->"]
[null,null,"<xsd:enumeration value=\"05\" />","<!-- 対象パターン⑤ -->"]
[null,null,"<xsd:enumeration value=\"06\" />","<!-- 対象パターン⑥ -->"]
[null,null,"<xsd:enumeration value=\"07\" />","<!-- 対象パターン⑦ -->"]
[null,null,"<xsd:enumeration value=\"08\" />","<!-- 対象パターン⑧ -->"]
[null,null,"<xsd:enumeration value=\"09\" />","<!-- 対象パターン⑨ -->"]
[null,null,"<xsd:enumeration value=\"10\" />","<!-- 対象パターン⑩ -->"]
[null,null,"<xsd:enumeration value=\"11\" />","<!-- 対象パターン⑪ -->"]
[null,null,"<xsd:enumeration value=\"12\" />","<!-- 対象パターン⑫ -->"]
[null,null,"<xsd:enumeration value=\"13\" />","<!-- 対象パターン⑬ -->"]
[null,null,"<xsd:enumeration value=\"14\" />","<!-- 対象パターン⑭ -->"]
[null,null,"<xsd:enumeration value=\"15\" />","<!-- 対象パターン⑮ -->"]
[null,null,"<xsd:enumeration value=\"16\" />","<!-- 対象パターン⑯ -->"]
[null,null,"<xsd:enumeration value=\"17\" />","<!-- 対象パターン⑰ -->"]
[null,null,"<xsd:enumeration value=\"18\" />","<!-- 対象パターン⑱ -->"]
[null,null,"<xsd:enumeration value=\"19\" />","<!-- 対象パターン⑲ -->"]
[null,null,"<xsd:enumeration value=\"20\" />","<!-- 対象パターン⑳ -->"]
[null,"</xsd:restriction>"]
["</xsd:simpleType>"]
[]
["<xsd:simpleType name=\"CD06403_31\">"]
[null,"<xsd:restriction base=\"xsd:string\">"]
[null,null,"<xsd:enumeration value=\"低圧\" />"]
[null,null,"<xsd:enumeration value=\"高圧\" />"]
[null,null,"<xsd:enumeration value=\"特高\" />"]
[null,"</xsd:restriction>"]
["</xsd:simpleType>"]
[]
["<xsd:simpleType name=\"CD06403_32\">"]
[null,"<xsd:restriction base=\"xsd:string\">"]
[null,null,"<xsd:enumeration value=\"高圧\" />"]
[null,null,"<xsd:enumeration value=\"特高\" />"]
[null,"</xsd:restriction>"]
["</xsd:simpleType>"]
[]
["<xsd:simpleType name=\"CD06708\">"]
[null,"<xsd:restriction base=\"xsd:string\">"]
[null,null,"<xsd:enumeration value=\"1\" />","<!-- 1:需要抑制-->"]
[null,null,"<xsd:enumeration value=\"2\" />","<!-- 2:自家発等 -->"]
[null,"</xsd:restriction>"]
["</xsd:simpleType>"]
[]
["<xsd:simpleType name=\"CD06710\">"]
[null,"<xsd:restriction base=\"xsd:string\">"]
[null,null,"<xsd:enumeration value=\"1\" />","<!--1:火力-->"]
[null,null,"<xsd:enumeration value=\"2\" />","<!-- 2:水力 -->"]
[null,null,"<xsd:enumeration value=\"3\" />","<!--3:太陽光-->"]
[null,null,"<xsd:enumeration value=\"4\" />","<!-- 4:風力 -->"]
[null,null,"<xsd:enumeration value=\"5\" />","<!--5:地熱-->"]
[null,null,"<xsd:enumeration value=\"6\" />","<!-- 6:蓄電池 -->"]
[null,null,"<xsd:enumeration value=\"7\" />","<!--7:その他-->"]
[null,"</xsd:restriction>"]
["</xsd:simpleType>"]
[]
["<xsd:simpleType name=\"CD06711\">"]
[null,"<xsd:restriction base=\"xsd:string\">"]
[null,null,"<xsd:enumeration value=\"1\" />","<!-- 1:コンバインドサイクル -->"]
[null,null,"<xsd:enumeration value=\"2\" />","<!-- 2:汽力 -->"]
[null,null,"<xsd:enumeration value=\"3\" />","<!-- 3:ディーゼル -->"]
[null,null,"<xsd:enumeration value=\"4\" />","<!-- 4:水力 -->"]
[null,null,"<xsd:enumeration value=\"5\" />","<!-- 5:太陽光 -->"]
[null,null,"<xsd:enumeration value=\"6\" />","<!-- 6:風力 -->"]
[null,null,"<xsd:enumeration value=\"7\" />","<!-- 7:地熱 -->"]
[null,null,"<xsd:enumeration value=\"8\" />","<!-- 8:蓄電池 -->"]
[null,null,"<xsd:enumeration value=\"9\" />","<!-- 9:その他 -->"]
[null,"</xsd:restriction>"]
["</xsd:simpleType>"]
[]
["<xsd:simpleType name=\"CD06712\">"]
[null,"<xsd:restriction base=\"xsd:string\">"]
[null,null,"<xsd:enumeration value=\"01\" />","<!-- 01:原油 -->"]
[null,null,"<xsd:enumeration value=\"02\" />","<!-- 02:重油 -->"]
[null,null,"<xsd:enumeration value=\"03\" />","<!-- 03:軽油 -->"]
[null,null,"<xsd:enumeration value=\"04\" />","<!-- 04:LNG -->"]
[null,null,"<xsd:enumeration value=\"05\" />","<!-- 05:LPG -->"]
[null,null,"<xsd:enumeration value=\"06\" />","<!-- 06:NGL-->"]
[null,null,"<xsd:enumeration value=\"07\" />","<!-- 07:都市ガス -->"]
[null,null,"<xsd:enumeration value=\"08\" />","<!-- 08:灯油 -->"]
[null,null,"<xsd:enumeration value=\"09\" />","<!-- 09:石炭 -->"]
[null,null,"<xsd:enumeration value=\"10\" />","<!-- 10:木質ペレット -->"]
[null,null,"<xsd:enumeration value=\"11\" />","<!-- 11:その他 -->"]
[null,"</xsd:restriction>"]
["</xsd:simpleType>"]
[]
["<!--日付関連-->"]
["<xsd:simpleType name=\"DT_YYYYMMDD\">"]
[null,"<xsd:restriction base=\"xsd:string\">"]
[null,null,"<xsd:pattern value=\"\\d{8}\" />"]
[null,"</xsd:restriction>"]
["</xsd:simpleType>"]
[]
["<!--数値型-->"]
["<!--５桁-->"]
["<xsd:simpleType name=\"NI5\">"]
[null,"<xsd:restriction base=\"xsd:nonNegativeInteger\">"]
[null,null,"<xsd:totalDigits value=\"5\" />"]
[null,"</xsd:restriction>"]
["</xsd:simpleType>"]
[]
["<!--９桁-->"]
["<xsd:simpleType name=\"NI9\">"]
[null,"<xsd:restriction base=\"xsd:nonNegativeInteger\">"]
[null,null,"<xsd:totalDigits value=\"9\" />"]
[null,"</xsd:restriction>"]
["</xsd:simpleType>"]
[]
["<!--文字型-->"]
["<!--50文字-->"]
["<xsd:simpleType name=\"STR50\">"]
[null,"<xsd:restriction base=\"xsd:string\">"]
[null,null,"<xsd:minLength value=\"1\" />"]
[null,null,"<xsd:maxLength value=\"50\" />"]
[null,"</xsd:restriction>"]
["</xsd:simpleType>"]
[]
["<!--70文字-->"]
["<xsd:simpleType name=\"STR70\">"]
[null,"<xsd:restriction base=\"xsd:string\">"]
[null,null,"<xsd:minLength value=\"1\" />"]
[null,null,"<xsd:maxLength value=\"70\" />"]
[null,"</xsd:restriction>"]
["</xsd:simpleType>"]
[]
["<!--80文字-->"]
["<xsd:simpleType name=\"STR80\">"]
[null,"<xsd:restriction base=\"xsd:string\">"]
[null,null,"<xsd:minLength value=\"1\" />"]
[null,null,"<xsd:maxLength value=\"80\" />"]
[null,"</xsd:restriction>"]
["</xsd:simpleType>"]
[]
["<!--４文字・半角-->"]
["<xsd:simpleType name=\"STR4S\">"]
[null,"<xsd:restriction base=\"xsd:string\">"]
[null,null,"<xsd:pattern value=\"[&#x20;-&#x7e;]+\" />"]
[null,null,"<xsd:minLength value=\"1\" />"]
[null,null,"<xsd:maxLength value=\"4\" />"]
[null,"</xsd:restriction>"]
["</xsd:simpleType>"]
[]
["<!--５文字・半角-->"]
["<xsd:simpleType name=\"STR5S\">"]
[null,"<xsd:restriction base=\"xsd:string\">"]
[null,null,"<xsd:pattern value=\"[&#x20;-&#x7e;]+\" />"]
[null,null,"<xsd:minLength value=\"1\" />"]
[null,null,"<xsd:maxLength value=\"5\" />"]
[null,"</xsd:restriction>"]
["</xsd:simpleType>"]
[]
["<!--22文字・半角-->"]
["<xsd:simpleType name=\"STR22S\">"]
[null,"<xsd:restriction base=\"xsd:string\">"]
[null,null,"<xsd:pattern value=\"[&#x20;-&#x7e;]+\" />"]
[null,null,"<xsd:minLength value=\"1\" />"]
[null,null,"<xsd:maxLength value=\"22\" />"]
[null,"</xsd:restriction>"]
["</xsd:simpleType>"]
["</xsd:schema>"]

{"sheet":"XSD(0232)_旧","index":12,"n_rows":380,"n_cols":4,"rows_kept":380,"cut":false,"hidden":true,"merged":[]}
["<?xml version=\"1.0\" encoding=\"UTF-8\" ?>"]
["<xsd:schema xmlns:xsd=\"http://www.w3.org/2001/XMLSchema\" elementFormDefault=\"qualified\" attributeFormDefault=\"unqualified\">"]
[]
["<!--需要家リスト・パターン (0232) -->"]
["<!--需要家リスト 2019.09 rev 1.0 Release -->"]
[]
[]
["<!--メッセージグループヘッダ-->"]
[null,"<xsd:element name=\"MMS-MSG\" type=\"TypeMMS-MSG\" />"]
[null,"<xsd:complexType name=\"TypeMMS-MSG\">"]
[null,null,"<xsd:sequence>"]
[null,null,null,"<xsd:element name=\"JPMGRP\" type=\"TypeJPMGRP\" />"]
[null,null,"</xsd:sequence>"]
[null,null,"<!-- BPID機関コード -->"]
[null,null,"<xsd:attribute name=\"BPID\"    type=\"CdC10-OCTO\"   use=\"required\" />"]
[null,null,"<!-- BPID副機関コード -->"]
[null,null,"<xsd:attribute name=\"BPIDSUB\" type=\"CdC11-W9\"     use=\"required\" />"]
[null,null,"<!-- 各BP標準の版 -->"]
[null,null,"<xsd:attribute name=\"BPIDVER\" type=\"CdC12-3A\"   use=\"required\" />"]
[null,null,"<!-- 情報区分コード -->"]
[null,null,"<xsd:attribute name=\"MSGID\"   type=\"CdC14\"      use=\"required\" />"]
[null,null,"<!-- マッピング規則の版 -->"]
[null,null,"<xsd:attribute name=\"MAPVER\"  type=\"CdC21\"   use=\"required\" />"]
[null,"</xsd:complexType>"]
[]
[null,"<!--メッセージ定義-->"]
[null,"<xsd:complexType name=\"TypeJPMGRP\">"]
[null,null,"<xsd:sequence>"]
[null,null,null,"<!-- メッセージグループヘッダ -->"]
[null,null,null,"<xsd:element name=\"JPMGH\" type=\"TypeJPMGH\" />"]
[null,null,null,"<!-- 業務メッセージ -->"]
[null,null,null,"<xsd:element name=\"JPTRM\" type=\"TypeJPTRM\" />"]
[null,null,"</xsd:sequence>"]
[null,null,"<!-- メッセージグループの属性定義 -->"]
[null,null,"<!-- メッセージグループのシーケンス番号 -->"]
[null,null,"<xsd:attribute name=\"SEQ\" type=\"NI5\" use=\"required\" />    "]
[null,"</xsd:complexType>"]
[]
["<!--メッセージグループヘッダ -->"]
[null,"<xsd:complexType name=\"TypeJPMGH\">"]
[null,null,"<xsd:sequence>"]
[null,null,null,"<!-- 運用モード -->"]
[null,null,null,"<xsd:element name=\"JPC03\" type=\"CdC03\"/>  "]
[null,null,null,"<!-- 発信者コード --> "]
[null,null,null,"<xsd:element name=\"JPC06\" type=\"CdC06\"/>  "]
[null,null,null,"<!-- 受信者コード -->"]
[null,null,null,"<xsd:element name=\"JPC09\" type=\"CdC09\"/>   "]
[null,null,null,"<!-- BPID機関コード -->"]
[null,null,null,"<xsd:element name=\"JPC10\" type=\"CdC10-OCTO\" /> "]
[null,null,null,"<!-- BPID副機関コード -->"]
[null,null,null,"<xsd:element name=\"JPC11\" type=\"CdC11-W9\" />"]
[null,null,null,"<!-- BPIDVER -->"]
[null,null,null,"<xsd:element name=\"JPC12\" type=\"CdC12-3A\" />"]
[null,null,null,"<!-- 情報区分コード -->"]
[null,null,null,"<xsd:element name=\"JPC14\" type=\"CdC14\"/>"]
[null,null,null,"<!-- 作成日付時刻 -->"]
[null,null,null,"<xsd:element name=\"JPC19\" type=\"DT_YYMMDDHHMMSS\" />"]
[null,null,null,"<!-- 構文規則識別版数 -->"]
[null,null,null,"<xsd:element name=\"JPC21\" type=\"CdC21\"/>"]
[null,null,"</xsd:sequence>"]
[null,"</xsd:complexType>"]
[]
["<!--業務メッセージ -->"]
[null,"<xsd:complexType name=\"TypeJPTRM\">"]
[null,null,"<xsd:sequence>"]
[null,null,null,"<!-- 情報区分コード -->"]
[null,null,null,"<xsd:element name=\"JP00002\" type=\"STR4S\"/>"]
[null,null,null,"<!-- 情報区分名称 -->"]
[null,null,null,"<xsd:element name=\"JP06170\" type=\"STR50\" minOccurs=\"0\" maxOccurs=\"1\" />"]
[null,null,null,"<!-- 送信者コード -->"]
[null,null,null,"<xsd:element name=\"JP06110\" type=\"STR5S\" />"]
[null,null,null,"<!-- 送信者名称 -->"]
[null,null,null,"<xsd:element name=\"JP06111\" type=\"STR50\" minOccurs=\"0\" maxOccurs=\"1\" />"]
[null,null,null,"<!-- 提出先事業者コード -->"]
[null,null,null,"<xsd:element name=\"JP06358\" type=\"STR5S\" />"]
[null,null,null,"<!-- 提出先事業者名称 -->"]
[null,null,null,"<xsd:element name=\"JP06359\" type=\"STR50\" minOccurs=\"0\" maxOccurs=\"1\" />"]
[null,null,null,"<!-- アグリゲーター用系統コード -->"]
[null,null,null,"<xsd:element name=\"JP06700\" type=\"CD06700\" />"]
[null,null,null,"<!-- アグリゲーター名称 -->"]
[null,null,null,"<xsd:element name=\"JP06701\" type=\"STR50\" minOccurs=\"0\" maxOccurs=\"1\" />"]
[null,null,null,"<!-- 対象期間開始年月日 -->"]
[null,null,null,"<xsd:element name=\"JP06171\" type=\"DT_YYYYMMDD\" />"]
[null,null,null,"<!-- 対象需要家リスト・パターン -->"]
[null,null,null,"<xsd:element name=\"JP06703\" type=\"CD06703\" />"]
[null,null,null,"<!--需要家リスト合計最大供出量-->"]
[null,null,null,"<xsd:element name=\"JP06706\" type=\"NI9\" />"]
[null,null,null,"<!--帳票作成支援ツール名-->"]
[null,null,null,"<xsd:element name=\"JP06613\" type=\"STR50\" minOccurs=\"0\" maxOccurs=\"1\" />"]
["          "]
[null,null,null,"<!--M10ループ-->"]
[null,null,null,"<xsd:element name=\"JPM00010\" type=\"TypeJPM00010\" minOccurs=\"0\" maxOccurs=\"1\"/>"]
[]
[null,null,null,"<!--M11ループ-->"]
[null,null,null,"<xsd:element name=\"JPM00011\" type=\"TypeJPM00011\" minOccurs=\"0\" maxOccurs=\"1\"/>"]
[]
[null,null,"</xsd:sequence>"]
[null,null,"<!--メッセージの属性（シーケンス番号） -->"]
[null,null,"<xsd:attribute name=\"SEQ\" type=\"NI5\" use=\"required\" />"]
[null,"</xsd:complexType>"]
[]
[null,"<!--M10ループ-->"]
[null,"<xsd:complexType name=\"TypeJPM00010\">"]
[null,null,"<xsd:sequence>"]
[null,null,null,"<xsd:element name=\"JPMR00010\" type=\"TypeJPMR00010\"  minOccurs=\"0\" maxOccurs=\"9999\" />"]
[null,null,"</xsd:sequence>"]
[null,"</xsd:complexType>"]
[]
[null,"<!--M10ループ中身 -->"]
[null,"<xsd:complexType name=\"TypeJPMR00010\">"]
[null,null,"<xsd:sequence>"]
[null,null,null,"<!--供給地点特定番号-->"]
[null,null,null,"<xsd:element name=\"JP06400\" type=\"STR22S\" />"]
[null,null,null,"<!--需要家名称-->"]
[null,null,null,"<xsd:element name=\"JP06120\" type=\"STR50\" />"]
[null,null,null,"<!--供給場所-->"]
[null,null,null,"<xsd:element name=\"JP06402\" type=\"STR50\" />"]
[null,null,null,"<!--契約電力-->"]
[null,null,null,"<xsd:element name=\"JP06707\" type=\"NI9\" />"]
[null,null,null,"<!--電圧区分-->"]
[null,null,null,"<xsd:element name=\"JP06403\" type=\"CD06403\" />"]
[null,null,null,"<!--供出方法-->"]
[null,null,null,"<xsd:element name=\"JP06708\" type=\"CD06708\" />"]
[null,null,null,"<!--小売電気事業者コード-->"]
[null,null,null,"<xsd:element name=\"JP06316\" type=\"STR5S\" />"]
[null,null,null,"<!--小売電気事業者名称-->"]
[null,null,null,"<xsd:element name=\"JP06317\" type=\"STR50\" minOccurs=\"0\" maxOccurs=\"1\" />"]
[null,null,null,"<!--需要抑制BGコード-->"]
[null,null,null,"<xsd:element name=\"JP06600\" type=\"STR5S\" minOccurs=\"0\" maxOccurs=\"1\"  />"]
[null,null,"</xsd:sequence>"]
[null,"</xsd:complexType>"]
[]
[null,"<!--M11ループ-->"]
[null,"<xsd:complexType name=\"TypeJPM00011\">"]
[null,null,"<xsd:sequence>"]
[null,null,null,"<xsd:element name=\"JPMR00011\" type=\"TypeJPMR00011\"  minOccurs=\"0\" maxOccurs=\"999\" />"]
[null,null,"</xsd:sequence>"]
[null,"</xsd:complexType>"]
[null,"<!--M11ループ中身 -->"]
[null,"<xsd:complexType name=\"TypeJPMR00011\">"]
[null,null,"<xsd:sequence>"]
[null,null,null,"<!--受電地点特定番号-->"]
[null,null,null,"<xsd:element name=\"JP06709\" type=\"STR22S\" />"]
[null,null,null,"<!--発電所名称-->"]
[null,null,null,"<xsd:element name=\"JP06310\" type=\"STR50\" />"]
[null,null,null,"<!--発電所場所-->"]
[null,null,null,"<xsd:element name=\"JP06402\" type=\"STR50\" />"]
[null,null,null,"<!--最大受電電力-->"]
[null,null,null,"<xsd:element name=\"JP06312\" type=\"NI9\" />"]
[null,null,null,"<!--電圧区分-->"]
[null,null,null,"<xsd:element name=\"JP06403\" type=\"CD06403\" />"]
[null,null,null,"<!--電源の種別-->"]
[null,null,null,"<xsd:element name=\"JP06710\" type=\"CD06710\" />"]
[null,null,null,"<!--発電方式-->"]
[null,null,null,"<xsd:element name=\"JP06711\" type=\"CD06711\" />"]
[null,null,null,"<!--火力燃料種別-->"]
[null,null,null,"<xsd:element name=\"JP06712\" type=\"CD06712\" />"]
[null,null,null,"<!--発電BGコード-->"]
[null,null,null,"<xsd:element name=\"JP06300\" type=\"STR5S\" />"]
[null,null,null,"<!--発電BG名称-->"]
[null,null,null,"<xsd:element name=\"JP06301\" type=\"STR50\" minOccurs=\"0\" maxOccurs=\"1\" />"]
[null,null,null,"<!--発電計画提出用系統コード-->"]
[null,null,null,"<xsd:element name=\"JP06186\" type=\"STR5S\" />"]
[null,null,"</xsd:sequence>"]
[null,"</xsd:complexType>"]
[]
[]
["<!-- JPC10:BPID機関コード(OCTO) -->"]
["<xsd:simpleType name=\"CdC10-OCTO\">"]
[null,"<xsd:restriction base=\"xsd:string\">"]
[null,null,null,"<xsd:enumeration value=\"OCTO\" />"]
[null,"</xsd:restriction>"]
["</xsd:simpleType>"]
[]
["<!-- JPC11:BPID副機関コード(W9) -->"]
["<xsd:simpleType name=\"CdC11-W9\">"]
[null,"<xsd:restriction base=\"xsd:string\">"]
[null,null,"<xsd:enumeration value=\"W9\" />"]
[null,"</xsd:restriction>"]
["</xsd:simpleType>"]
[]
["<!--JPC12:BPID版(3A) -->"]
["<xsd:simpleType name=\"CdC12-3A\">"]
[null,"<xsd:restriction base=\"xsd:string\">"]
[null,null,"<xsd:enumeration value=\"3A\" />"]
[null,"</xsd:restriction>"]
["</xsd:simpleType>"]
[]
["<!-- 情報区分コード -->"]
["<xsd:simpleType name=\"CdC14\">"]
[null,"<xsd:restriction base=\"xsd:string\">"]
[null,null,"<xsd:enumeration value=\"0232\" />"]
[null,"</xsd:restriction>"]
["</xsd:simpleType>"]
[]
["<!-- JPC21:構文規則識別版数 -->"]
["<xsd:simpleType name=\"CdC21\">"]
[null,"<xsd:restriction base=\"xsd:string\">"]
[null,null,"<xsd:enumeration value=\"1.0-1A\" />"]
[null,"</xsd:restriction>"]
["</xsd:simpleType>"]
[]
["<!-- JPC03:運用モード -->"]
["<xsd:simpleType name=\"CdC03\">"]
[null,"<xsd:restriction base=\"xsd:string\">"]
[null,null,"<xsd:enumeration value=\"\" />"]
[null,null,"<xsd:enumeration value=\"0\" />"]
[null,null,"<xsd:enumeration value=\"1\" />"]
[null,"</xsd:restriction>"]
["</xsd:simpleType>"]
[]
["<!-- JPC06:発信者コード -->"]
["<xsd:simpleType name=\"CdC06\">"]
[null,"<xsd:restriction base=\"xsd:string\">"]
[null,null,"<xsd:pattern value=\"\\w{5}[0]{7}\" />"]
[null,"</xsd:restriction>"]
["</xsd:simpleType>"]
[]
["<!-- JPC09:受信者コード -->"]
["<xsd:simpleType name=\"CdC09\">"]
[null,"<xsd:restriction base=\"xsd:string\">"]
[null,null,"<xsd:pattern value=\"\\w{5}[0]{7}\" />"]
[null,"</xsd:restriction>"]
["</xsd:simpleType>"]
[]
["<!-- アグリゲーター用系統コード -->"]
["<xsd:simpleType name=\"CD06700\">"]
[null,"<xsd:restriction base=\"xsd:string\">"]
[null,null,"<xsd:pattern value=\"[0-9]Y[&#x20;-&#x7e;]{3}\" />"]
[null,"</xsd:restriction>"]
["</xsd:simpleType>"]
[]
["<!--日付関連-->"]
["<xsd:simpleType name=\"DT_YYMMDDHHMMSS\">"]
[null,"<xsd:restriction base=\"xsd:string\">"]
[null,null,"<xsd:pattern value=\"\\d{12}\" />"]
[null,"</xsd:restriction>"]
["</xsd:simpleType>"]
[]
["<!-- 対象パターン番号 -->"]
["<xsd:simpleType name=\"CD06703\">"]
[null,"<xsd:restriction base=\"xsd:string\">"]
[null,null,"<xsd:enumeration value=\"01\" />","<!-- 対象パターン① -->"]
[null,null,"<xsd:enumeration value=\"02\" />","<!-- 対象パターン② -->"]
[null,null,"<xsd:enumeration value=\"03\" />","<!-- 対象パターン③ -->"]
[null,null,"<xsd:enumeration value=\"04\" />","<!-- 対象パターン④ -->"]
[null,null,"<xsd:enumeration value=\"05\" />","<!-- 対象パターン⑤ -->"]
[null,null,"<xsd:enumeration value=\"06\" />","<!-- 対象パターン⑥ -->"]
[null,null,"<xsd:enumeration value=\"07\" />","<!-- 対象パターン⑦ -->"]
[null,null,"<xsd:enumeration value=\"08\" />","<!-- 対象パターン⑧ -->"]
[null,null,"<xsd:enumeration value=\"09\" />","<!-- 対象パターン⑨ -->"]
[null,null,"<xsd:enumeration value=\"10\" />","<!-- 対象パターン⑩ -->"]
[null,null,"<xsd:enumeration value=\"11\" />","<!-- 対象パターン⑪ -->"]
[null,null,"<xsd:enumeration value=\"12\" />","<!-- 対象パターン⑫ -->"]
[null,null,"<xsd:enumeration value=\"13\" />","<!-- 対象パターン⑬ -->"]
[null,null,"<xsd:enumeration value=\"14\" />","<!-- 対象パターン⑭ -->"]
[null,null,"<xsd:enumeration value=\"15\" />","<!-- 対象パターン⑮ -->"]
[null,null,"<xsd:enumeration value=\"16\" />","<!-- 対象パターン⑯ -->"]
[null,null,"<xsd:enumeration value=\"17\" />","<!-- 対象パターン⑰ -->"]
[null,null,"<xsd:enumeration value=\"18\" />","<!-- 対象パターン⑱ -->"]
[null,null,"<xsd:enumeration value=\"19\" />","<!-- 対象パターン⑲ -->"]
[null,null,"<xsd:enumeration value=\"20\" />","<!-- 対象パターン⑳ -->"]
[null,"</xsd:restriction>"]
["</xsd:simpleType>"]
[]
["<xsd:simpleType name=\"CD06403\">"]
[null,"<xsd:restriction base=\"xsd:string\">"]
[null,null,"<xsd:enumeration value=\"低圧\" />"]
[null,null,"<xsd:enumeration value=\"高圧\" />"]
[null,null,"<xsd:enumeration value=\"特高\" />"]
[null,"</xsd:restriction>"]
["</xsd:simpleType>"]
[]
["<xsd:simpleType name=\"CD06708\">"]
[null,"<xsd:restriction base=\"xsd:string\">"]
[null,null,"<xsd:enumeration value=\"1\" />","<!-- 1:需要抑制-->"]
[null,null,"<xsd:enumeration value=\"2\" />","<!-- 2:自家発等 -->"]
[null,"</xsd:restriction>"]
["</xsd:simpleType>"]
[]
["<xsd:simpleType name=\"CD06710\">"]
[null,"<xsd:restriction base=\"xsd:string\">"]
[null,null,"<xsd:enumeration value=\"1\" />","<!--1:火力-->"]
[null,null,"<xsd:enumeration value=\"2\" />","<!-- 2:水力 -->"]
[null,null,"<xsd:enumeration value=\"3\" />","<!--3:太陽光-->"]
[null,null,"<xsd:enumeration value=\"4\" />","<!-- 4:風力 -->"]
[null,null,"<xsd:enumeration value=\"5\" />","<!--5:地熱-->"]
[null,null,"<xsd:enumeration value=\"6\" />","<!-- 6:蓄電池 -->"]
[null,null,"<xsd:enumeration value=\"7\" />","<!--7:その他-->"]
[null,"</xsd:restriction>"]
["</xsd:simpleType>"]
[]
["<xsd:simpleType name=\"CD06711\">"]
[null,"<xsd:restriction base=\"xsd:string\">"]
[null,null,"<xsd:enumeration value=\"1\" />","<!-- 1:コンバインドサイクル -->"]
[null,null,"<xsd:enumeration value=\"2\" />","<!-- 2:汽力 -->"]
[null,null,"<xsd:enumeration value=\"3\" />","<!-- 3:ディーゼル -->"]
[null,null,"<xsd:enumeration value=\"4\" />","<!-- 4:水力 -->"]
[null,null,"<xsd:enumeration value=\"5\" />","<!-- 5:太陽光 -->"]
[null,null,"<xsd:enumeration value=\"6\" />","<!-- 6:風力 -->"]
[null,null,"<xsd:enumeration value=\"7\" />","<!-- 7:蓄電池 -->"]
[null,null,"<xsd:enumeration value=\"8\" />","<!-- 8:その他 -->"]
[null,"</xsd:restriction>"]
["</xsd:simpleType>"]
[]
["<xsd:simpleType name=\"CD06712\">"]
[null,"<xsd:restriction base=\"xsd:string\">"]
[null,null,"<xsd:enumeration value=\"01\" />","<!-- 01:原油 -->"]
[null,null,"<xsd:enumeration value=\"02\" />","<!-- 02:重油 -->"]
[null,null,"<xsd:enumeration value=\"03\" />","<!-- 03:軽油 -->"]
[null,null,"<xsd:enumeration value=\"04\" />","<!-- 04:LNG -->"]
[null,null,"<xsd:enumeration value=\"05\" />","<!-- 05:LPG -->"]
[null,null,"<xsd:enumeration value=\"06\" />","<!-- 06:NGL-->"]
[null,null,"<xsd:enumeration value=\"07\" />","<!-- 07:都市ガス -->"]
[null,null,"<xsd:enumeration value=\"08\" />","<!-- 08:灯油 -->"]
[null,null,"<xsd:enumeration value=\"09\" />","<!-- 09:石炭 -->"]
[null,null,"<xsd:enumeration value=\"10\" />","<!-- 10:木質ペレット -->"]
[null,null,"<xsd:enumeration value=\"11\" />","<!-- 11:その他 -->"]
[null,"</xsd:restriction>"]
["</xsd:simpleType>"]
[]
["<!--日付関連-->"]
["<xsd:simpleType name=\"DT_YYYYMMDD\">"]
[null,"<xsd:restriction base=\"xsd:string\">"]
[null,null,"<xsd:pattern value=\"\\d{8}\" />"]
[null,"</xsd:restriction>"]
["</xsd:simpleType>"]
[]
["<!--数値型-->"]
["<!--５桁-->"]
["<xsd:simpleType name=\"NI5\">"]
[null,"<xsd:restriction base=\"xsd:nonNegativeInteger\">"]
[null,null,"<xsd:totalDigits value=\"5\" />"]
[null,"</xsd:restriction>"]
["</xsd:simpleType>"]
[]
["<!--９桁-->"]
["<xsd:simpleType name=\"NI9\">"]
[null,"<xsd:restriction base=\"xsd:nonNegativeInteger\">"]
[null,null,"<xsd:totalDigits value=\"9\" />"]
[null,"</xsd:restriction>"]
["</xsd:simpleType>"]
[]
["<!--文字型-->"]
["<!--50文字-->"]
["<xsd:simpleType name=\"STR50\">"]
[null,"<xsd:restriction base=\"xsd:string\">"]
[null,null,"<xsd:minLength value=\"1\" />"]
[null,null,"<xsd:maxLength value=\"50\" />"]
[null,"</xsd:restriction>"]
["</xsd:simpleType>"]
[]
["<!--４文字・半角-->"]
["<xsd:simpleType name=\"STR4S\">"]
[null,"<xsd:restriction base=\"xsd:string\">"]
[null,null,"<xsd:pattern value=\"[&#x20;-&#x7e;]+\" />"]
[null,null,"<xsd:minLength value=\"1\" />"]
[null,null,"<xsd:maxLength value=\"4\" />"]
[null,"</xsd:restriction>"]
["</xsd:simpleType>"]
[]
["<!--５文字・半角-->"]
["<xsd:simpleType name=\"STR5S\">"]
[null,"<xsd:restriction base=\"xsd:string\">"]
[null,null,"<xsd:pattern value=\"[&#x20;-&#x7e;]+\" />"]
[null,null,"<xsd:minLength value=\"1\" />"]
[null,null,"<xsd:maxLength value=\"5\" />"]
[null,"</xsd:restriction>"]
["</xsd:simpleType>"]
[]
["<!--22文字・半角-->"]
["<xsd:simpleType name=\"STR22S\">"]
[null,"<xsd:restriction base=\"xsd:string\">"]
[null,null,"<xsd:pattern value=\"[&#x20;-&#x7e;]+\" />"]
[null,null,"<xsd:minLength value=\"1\" />"]
[null,null,"<xsd:maxLength value=\"22\" />"]
[null,"</xsd:restriction>"]
["</xsd:simpleType>"]
[]
["</xsd:schema>"]